{"text_format":"1","workbook":"xlsx","n_sheets":5,"sheets":["アンケート集計表（参加者） ","集計表（参加者）","入力用（参加者）","集計表（実施者）","入力用（実施者）"],"not_rendered":{"charts":0,"images":0,"macros":1,"external_links":0,"defined_names":4,"comments":3,"pivot_tables":0},"unopened":[],"bounds":{"document_bytes":16777216,"sheet_cells":100000,"rows_first":2000,"rows_last":500,"rows_between":2000,"halvings":0,"cell_chars":16384,"cell_head_chars":4096},"cells_cut":0,"cells_raw":0,"read":"whole","date_system":"1900"}

{"sheet":"アンケート集計表（参加者） ","index":0,"n_rows":99,"n_cols":11,"rows_kept":99,"cut":false,"hidden":false,"merged":[[0,0,0,10],[1,0,1,10],[3,4,3,10],[4,4,4,10],[6,1,6,4],[7,1,7,4],[12,1,12,10],[13,1,16,1],[13,2,13,4],[13,10,16,10],[14,2,14,4],[15,2,15,4],[16,2,16,4],[8,1,8,10],[9,1,11,1],[9,2,9,4],[9,10,11,10],[10,2,10,4],[11,2,11,4],[23,1,23,10],[24,1,28,1],[24,2,24,4],[24,10,28,10],[25,2,25,4],[26,2,26,4],[27,2,27,4],[28,2,28,4],[17,1,17,10],[18,1,22,1],[18,2,18,4],[18,10,22,10],[19,2,19,4],[20,2,20,4],[21,2,21,4],[22,2,22,4],[35,1,35,10],[36,1,40,1],[36,2,36,4],[36,10,40,10],[37,2,37,4],[38,2,38,4],[39,2,39,4],[40,2,40,4],[29,1,29,10],[30,1,34,1],[30,2,30,4],[30,10,34,10],[31,2,31,4],[32,2,32,4],[33,2,33,4],[34,2,34,4],[47,1,47,10],[48,1,52,1],[48,2,48,4],[48,10,51,10],[49,2,49,4],[50,2,50,4],[51,2,51,4],[52,2,52,4],[41,1,41,10],[42,1,46,1],[42,2,42,4],[42,10,46,10],[43,2,43,4],[44,2,44,4],[45,2,45,4],[46,2,46,4],[55,1,55,4],[56,1,56,10],[57,1,62,1],[57,2,57,4],[57,10,62,10],[58,2,58,4],[59,2,59,4],[60,2,60,4],[61,2,61,4],[62,2,62,4],[63,1,63,10],[64,1,73,1],[64,2,64,4],[64,10,73,10],[65,2,65,4],[66,2,66,4],[67,2,67,4],[68,2,68,4],[69,2,69,4],[70,2,70,4],[79,2,79,4],[80,1,80,10],[81,2,81,10],[82,2,82,10],[83,2,83,10],[84,2,84,10],[71,2,71,4],[72,2,72,4],[73,2,73,4],[74,1,74,10],[75,1,79,1],[75,2,75,4],[75,10,79,10],[76,2,76,4],[77,2,77,4],[78,2,78,4],[97,2,97,10],[98,2,98,10],[91,2,91,10],[92,2,92,10],[93,2,93,10],[94,2,94,10],[95,2,95,10],[96,2,96,10],[85,2,85,10],[86,2,86,10],[87,2,87,10],[88,2,88,10],[89,2,89,10],[90,2,90,10]]}
["平成２６年度　ひらめき☆ときめきサイエンス～ようこそ大学の研究室へ～KAKENHI"]
["（研究成果の社会還元・普及事業）　アンケート集計表   《　参加者　》"]
[]
[null,null,null,"整理番号","HT27○○○（機関名）"]
[null,null,null,"プログラム名","○○○○○○○○○○"]
[]
[null,null,null,null,null,"小学生","中学生","高校生","保護者等","計","その他\n記入欄"]
[null,"アンケート回収枚数",null,null,null,null,null,null,null,{"$f":"SUM(F8:I8)","v":0}]
[null,"●性別"]
[null,null,"１．男",null,null,null,null,null,null,0]
[null,null,"２．女",null,null,null,null,null,null,0]
[null,null,"３．無回答",null,null,null,null,null,null,0]
[null,"●所属"]
[null,null,"１．国立",null,null,null,null,null,null,0]
[null,null,"２．公立",null,null,null,null,null,null,0]
[null,null,"３．私立",null,null,null,null,null,null,0]
[null,null,"４．無回答",null,null,null,null,null,null,{"$f":"I17","v":0}]
[null,"① 今日のプログラムは、いかがでしたか。"]
[null,null,"１．とてもおもしろかった",null,null,null,null,null,null,{"$f":"SUM(F19:I19)","v":0}]
[null,null,"２．おもしろかった",null,null,null,null,null,null,{"$f":"SUM(F20:I20)","v":0}]
[null,null,"３．おもしろくなかった",null,null,null,null,null,null,{"$f":"SUM(F21:I21)","v":0}]
[null,null,"４．わからない",null,null,null,null,null,null,{"$f":"SUM(F22:I22)","v":0}]
[null,null,"５．無回答",null,null,null,null,null,null,{"$f":"SUM(F23:I23)","v":0}]
[null,"② 今日のプログラムはわかりやすかったですか。"]
[null,null,"１．とてもわかりやすかった",null,null,null,null,null,null,{"$f":"SUM(F25:I25)","v":0}]
[null,null,"２．わかりやすかった",null,null,null,null,null,null,{"$f":"SUM(F26:I26)","v":0}]
[null,null,"３．わかりにくかった",null,null,null,null,null,null,{"$f":"SUM(F27:I27)","v":0}]
[null,null,"４．わからない",null,null,null,null,null,null,{"$f":"SUM(F28:I28)","v":0}]
[null,null,"５．無回答",null,null,null,null,null,null,{"$f":"SUM(F29:I29)","v":0}]
[null,"③ 科学に興味がわきましたか。"]
[null,null,"１．非常に興味がわいた",null,null,null,null,null,null,{"$f":"SUM(F31:I31)","v":0}]
[null,null,"２．少し興味がわいた",null,null,null,null,null,null,{"$f":"SUM(F32:I32)","v":0}]
[null,null,"３．興味がわかなかった",null,null,null,null,null,null,{"$f":"SUM(F33:I33)","v":0}]
[null,null,"４．わからない",null,null,null,null,null,null,{"$f":"SUM(F34:I34)","v":0}]
[null,null,"５．無回答",null,null,null,null,null,null,{"$f":"SUM(F35:I35)","v":0}]
[null,"④ 研究者（大学の先生）からの話などを聞いて、将来、自分も研究をしてみたいと思いましたか。"]
[null,null,"１．とても思った",null,null,null,null,null,null,{"$f":"SUM(F37:I37)","v":0}]
[null,null,"２．できればしてみたい",null,null,null,null,null,null,{"$f":"SUM(F38:I38)","v":0}]
[null,null,"３．思わなかった",null,null,null,null,null,null,{"$f":"SUM(F39:I39)","v":0}]
[null,null,"４．わからない",null,null,null,null,null,null,{"$f":"SUM(F40:I40)","v":0}]
[null,null,"５．無回答",null,null,null,null,null,null,{"$f":"SUM(F41:I41)","v":0}]
[null,"⑤ 参加しようと思った理由について教えてください。"]
[null,null,"１．内容に興味があったから",null,null,null,null,null,null,{"$f":"SUM(F43:I43)","v":0},"・\n・\n・"]
[null,null,"２．先生や両親にすすめられたから",null,null,null,null,null,null,{"$f":"SUM(F44:I44)","v":0}]
[null,null,"３．近所で開催されるから",null,null,null,null,null,null,{"$f":"SUM(F45:I45)","v":0}]
[null,null,"４．その他",null,null,null,null,null,null,{"$f":"SUM(F46:I46)","v":0}]
[null,null,"５．無回答",null,null,null,null,null,null,{"$f":"SUM(F47:I47)","v":0}]
[null,"⑥ このような企画があれば、また参加したいと思いましたか。"]
[null,null,"１．是非参加したい",null,null,null,null,null,null,{"$f":"SUM(F49:I49)","v":0}]
[null,null,"２．できれば参加したい",null,null,null,null,null,null,{"$f":"SUM(F50:I50)","v":0}]
[null,null,"３．参加したいとは思わない",null,null,null,null,null,null,{"$f":"SUM(F51:I51)","v":0}]
[null,null,"４．わからない",null,null,null,null,null,null,{"$f":"SUM(F52:I52)","v":0}]
[null,null,"５．無回答"]
[null,null,null,null,null,null,null,null,null,null,{"$f":"E4&\"　\"&E5","v":"HT27○○○（機関名）　○○○○○○○○○○"}]
[]
[null,null,null,null,null,"小学生","中学生","高校生","保護者等","計","その他\n記入欄"]
[null,"⑦ このような企画に参加しやすい時期はいつですか。"]
[null,null,"１．夏休み",null,null,null,null,null,null,{"$f":"SUM(F58:I58)","v":0},"・\n・\n・"]
[null,null,"２．冬休み",null,null,null,null,null,null,0]
[null,null,"３．土曜日",null,null,null,null,null,null,0]
[null,null,"４．日曜日",null,null,null,null,null,null,0]
[null,null,"５．その他",null,null,null,null,null,null,0]
[null,null,"６．無回答",null,null,null,null,null,null,0]
[null,"⑧ このプログラムを誰から（どこで）知りましたか。"]
[null,null,"１．学校の先生",null,null,null,null,null,null,{"$f":"SUM(F65:I65)","v":0},"（雑誌名）\n・\n・\n・\n（その他）\n・\n・\n・\n"]
[null,null,"２．家族、友達",null,null,null,null,null,null,0]
[null,null,"３．機関のホームページ",null,null,null,null,null,null,0]
[null,null,"４．日本学術振興会のホームページ",null,null,null,null,null,null,0]
[null,null,"５．日本学術振興会のチラシ",null,null,null,null,null,null,{"$f":"SUM(F69:I69)","v":0}]
[null,null,"６．広告・ポスターなど",null,null,null,null,null,null,0]
[null,null,"７．雑誌",null,null,null,null,null,null,0]
[null,null,"８．Yahoo!きっず",null,null,null,null,null,null,0]
[null,null,"９．その他",null,null,null,null,null,null,{"$f":"SUM(F73:I73)","v":0}]
[null,null,"10．無回答"]
[null,"⑨ 科研費について知っていましたか。"]
[null,null,"１．よく知っていた",null,null,null,null,null,null,{"$f":"SUM(F76:I76)","v":0}]
[null,null,"２．少し知っていた",null,null,null,null,null,null,{"$f":"SUM(F77:I77)","v":0}]
[null,null,"３．聞いたことはあった",null,null,null,null,null,null,{"$f":"SUM(F78:I78)","v":0}]
[null,null,"４．今日初めて知った",null,null,null,null,null,null,{"$f":"SUM(F79:I79)","v":0}]
[null,null,"５．無回答",null,null,null,null,null,null,{"$f":"SUM(F80:I80)","v":0}]
[null,"　その他　意見・感想など"]
[null,"・"]
[null,"・"]
[null,"・"]
[null,"・"]
[null,"・"]
[null,"・"]
[null,"・"]
[null,"・"]
[null,"・"]
[null,"・"]
[null,"・"]
[null,"・"]
[null,"・"]
[null,"・"]
[null,"・"]
[null,"・"]
[null,"・"]
[null,"・"]

{"sheet":"集計表（参加者）","index":1,"n_rows":102,"n_cols":12,"rows_kept":102,"cut":false,"hidden":false,"merged":[[0,0,0,10],[1,0,1,10],[3,4,3,10],[4,4,4,10],[6,1,6,4],[7,1,7,4],[56,10,60,10],[47,10,51,10],[13,1,13,10],[14,2,14,4],[14,10,15,10],[15,2,15,4],[8,1,8,10],[9,1,12,1],[9,2,9,4],[9,10,12,10],[10,2,10,4],[11,2,11,4],[22,1,22,10],[23,1,27,1],[23,2,23,4],[23,10,27,10],[24,2,24,4],[25,2,25,4],[26,2,26,4],[27,2,27,4],[12,2,12,4],[16,1,16,10],[17,1,21,1],[17,2,17,4],[17,10,21,10],[18,2,18,4],[19,2,19,4],[20,2,20,4],[21,2,21,4],[34,1,34,10],[35,1,39,1],[35,2,35,4],[35,10,39,10],[36,2,36,4],[37,2,37,4],[38,2,38,4],[39,2,39,4],[28,1,28,10],[29,1,33,1],[29,2,29,4],[29,10,33,10],[30,2,30,4],[31,2,31,4],[32,2,32,4],[33,2,33,4],[46,1,46,10],[47,1,51,1],[47,2,47,4],[48,2,48,4],[49,2,49,4],[50,2,50,4],[51,2,51,4],[40,1,40,10],[41,1,45,1],[41,2,41,4],[41,10,45,10],[42,2,42,4],[43,2,43,4],[44,2,44,4],[45,2,45,4],[54,1,54,4],[61,1,61,10],[62,1,67,1],[62,2,62,4],[62,10,67,10],[63,2,63,4],[64,2,64,4],[65,2,65,4],[66,2,66,4],[67,2,67,4],[68,1,68,10],[69,2,69,4],[69,10,76,10],[70,2,70,4],[71,2,71,4],[72,2,72,4],[73,2,73,4],[74,2,74,4],[75,2,75,4],[76,2,76,4],[87,2,87,10],[88,2,88,10],[77,1,77,10],[78,1,82,1],[78,2,78,4],[78,10,82,10],[79,2,79,4],[80,2,80,4],[81,2,81,4],[82,2,82,4],[101,2,101,10],[55,1,55,10],[56,1,60,1],[56,2,56,4],[57,2,57,4],[58,2,58,4],[59,2,59,4],[60,2,60,4],[95,2,95,10],[96,2,96,10],[97,2,97,10],[98,2,98,10],[99,2,99,10],[100,2,100,10],[89,2,89,10],[90,2,90,10],[91,2,91,10],[92,2,92,10],[93,2,93,10],[94,2,94,10],[83,1,83,10],[84,2,84,10],[85,2,85,10],[86,2,86,10]]}
["平成２９年度　ひらめき☆ときめきサイエンス～ようこそ大学の研究室へ～KAKENHI"]
["（研究成果の社会還元・普及事業）　アンケート集計表   《　参加者　》"]
[]
[null,null,null,"整理番号","HT29000（機関名）"]
[null,null,null,"プログラム名","○○○○○○○○○○"]
[]
[null,null,null,null,null,"小学生","中学生","高校生","保護者等","計","その他\n記入欄"]
[null,"アンケート回収枚数",null,null,null,{"$f":"'入力用（参加者）'!C2","v":0},{"$f":"'入力用（参加者）'!D2","v":0},{"$f":"'入力用（参加者）'!E2","v":0},{"$f":"'入力用（参加者）'!F2","v":0},{"$f":"SUM(F8:I8)","v":0},null,{"$f":"SUM(F8:H8)","v":0}]
[null,"●所属"]
[null,null,"国立",null,null,{"$f":"SUMIF('入力用（参加者）'!$B$5:$B$206,F$7,'入力用（参加者）'!$G5:$G206)","v":0},{"$f":"SUMIF('入力用（参加者）'!$B$5:$B$206,G$7,'入力用（参加者）'!$G5:$G206)","v":0},{"$f":"SUMIF('入力用（参加者）'!$B$5:$B$206,H$7,'入力用（参加者）'!$G5:$G206)","v":0},null,0]
[null,null,"公立",null,null,{"$f":"SUMIF('入力用（参加者）'!$B$5:$B$206,F$7,'入力用（参加者）'!$H$5:$H$206)","v":0},{"$f":"SUMIF('入力用（参加者）'!$B$5:$B$206,G$7,'入力用（参加者）'!$H$5:$H$206)","v":0},{"$f":"SUMIF('入力用（参加者）'!$B$5:$B$206,H$7,'入力用（参加者）'!$H$5:$H$206)","v":0},null,0]
[null,null,"私立",null,null,{"$f":"SUMIF('入力用（参加者）'!$B$5:$B$206,F$7,'入力用（参加者）'!$I$5:$I$206)","v":0},{"$f":"SUMIF('入力用（参加者）'!$B$5:$B$206,G$7,'入力用（参加者）'!$I$5:$I$206)","v":0},{"$f":"SUMIF('入力用（参加者）'!$B$5:$B$206,H$7,'入力用（参加者）'!$I$5:$I$206)","v":0},null,0]
[null,null,"該当なし",null,null,{"$f":"SUMIF('入力用（参加者）'!$B$5:$B$206,F$7,'入力用（参加者）'!$J$5:$J$206)","v":0},{"$f":"SUMIF('入力用（参加者）'!$B$5:$B$206,G$7,'入力用（参加者）'!$J$5:$J$206)","v":0},{"$f":"SUMIF('入力用（参加者）'!$B$5:$B$206,H$7,'入力用（参加者）'!$J$5:$J$206)","v":0},null,0,null,{"$f":"SUM(J10:J13)","v":0}]
[null,"●性別"]
[null,1,"男",null,null,{"$f":"SUMIF('入力用（参加者）'!$B$5:$B$206,F7,'入力用（参加者）'!K5:K206)","v":0},{"$f":"SUMIF('入力用（参加者）'!$B$5:$B$206,G7,'入力用（参加者）'!K5:K206)","v":0},{"$f":"SUMIF('入力用（参加者）'!$B$5:$B$206,H7,'入力用（参加者）'!K5:K206)","v":0},null,{"$f":"SUM(F15:I15)","v":0}]
[null,2,"女",null,null,{"$f":"SUMIF('入力用（参加者）'!$B$5:$B$206,F7,'入力用（参加者）'!$L$5:$L$206)","v":0},{"$f":"SUMIF('入力用（参加者）'!$B$5:$B$206,G7,'入力用（参加者）'!$L$5:$L$206)","v":0},{"$f":"SUMIF('入力用（参加者）'!$B$5:$B$206,H7,'入力用（参加者）'!$L$5:$L$206)","v":0},null,{"$f":"SUM(F16:I16)","v":0},null,{"$f":"SUM(J15:J16)","v":0}]
[null,"① 今日のプログラムは、いかがでしたか。"]
[null,null,"とてもおもしろかった",null,null,{"$f":"SUMIF('入力用（参加者）'!$B$5:$B$206,F$7,'入力用（参加者）'!$M$5:$M$206)","v":0},{"$f":"SUMIF('入力用（参加者）'!$B$5:$B$206,G$7,'入力用（参加者）'!$M$5:$M$206)","v":0},{"$f":"SUMIF('入力用（参加者）'!$B$5:$B$206,H$7,'入力用（参加者）'!$M$5:$M$206)","v":0},null,{"$f":"SUM(F18:I18)","v":0}]
[null,null,"おもしろかった",null,null,{"$f":"SUMIF('入力用（参加者）'!$B$5:$B$206,F$7,'入力用（参加者）'!$N$5:$N$206)","v":0},{"$f":"SUMIF('入力用（参加者）'!$B$5:$B$206,G$7,'入力用（参加者）'!$N$5:$N$206)","v":0},{"$f":"SUMIF('入力用（参加者）'!$B$5:$B$206,H$7,'入力用（参加者）'!$N$5:$N$206)","v":0},null,{"$f":"SUM(F19:I19)","v":0}]
[null,null,"おもしろくなかった",null,null,{"$f":"SUMIF('入力用（参加者）'!$B$5:$B$206,F$7,'入力用（参加者）'!$O$5:$O$206)","v":0},{"$f":"SUMIF('入力用（参加者）'!$B$5:$B$206,G$7,'入力用（参加者）'!$O$5:$O$206)","v":0},{"$f":"SUMIF('入力用（参加者）'!$B$5:$B$206,H$7,'入力用（参加者）'!$O$5:$O$206)","v":0},null,0]
[null,null,"わからない",null,null,{"$f":"SUMIF('入力用（参加者）'!$B$5:$B$206,F$7,'入力用（参加者）'!$P$5:$P$206)","v":0},{"$f":"SUMIF('入力用（参加者）'!$B$5:$B$206,G$7,'入力用（参加者）'!$P$5:$P$206)","v":0},{"$f":"SUMIF('入力用（参加者）'!$B$5:$B$206,H$7,'入力用（参加者）'!$P$5:$P$206)","v":0},null,0]
[null,null,"無回答",null,null,{"$f":"SUMIF('入力用（参加者）'!$B$5:$B$206,F$7,'入力用（参加者）'!$Q$5:$Q$206)","v":0},{"$f":"SUMIF('入力用（参加者）'!$B$5:$B$206,G$7,'入力用（参加者）'!$Q$5:$Q$206)","v":0},{"$f":"SUMIF('入力用（参加者）'!$B$5:$B$206,H$7,'入力用（参加者）'!$Q$5:$Q$206)","v":0},null,0,null,{"$f":"SUM(J18:J22)","v":0}]
[null,"② 今日のプログラムはわかりやすかったですか。"]
[null,null,"とてもわかりやすかった",null,null,{"$f":"SUMIF('入力用（参加者）'!$B$5:$B$206,F$7,'入力用（参加者）'!$R$5:$R$206)","v":0},{"$f":"SUMIF('入力用（参加者）'!$B$5:$B$206,G$7,'入力用（参加者）'!$R$5:$R$206)","v":0},{"$f":"SUMIF('入力用（参加者）'!$B$5:$B$206,H$7,'入力用（参加者）'!$R$5:$R$206)","v":0},null,{"$f":"SUM(F24:I24)","v":0}]
[null,null,"わかりやすかった",null,null,{"$f":"SUMIF('入力用（参加者）'!$B$5:$B$206,F$7,'入力用（参加者）'!$S$5:$S$206)","v":0},{"$f":"SUMIF('入力用（参加者）'!$B$5:$B$206,G$7,'入力用（参加者）'!$S$5:$S$206)","v":0},{"$f":"SUMIF('入力用（参加者）'!$B$5:$B$206,H$7,'入力用（参加者）'!$S$5:$S$206)","v":0},null,{"$f":"SUM(F25:I25)","v":0}]
[null,null,"わかりにくかった",null,null,{"$f":"SUMIF('入力用（参加者）'!$B$5:$B$206,F$7,'入力用（参加者）'!$T$5:$T$206)","v":0},{"$f":"SUMIF('入力用（参加者）'!$B$5:$B$206,G$7,'入力用（参加者）'!$T$5:$T$206)","v":0},{"$f":"SUMIF('入力用（参加者）'!$B$5:$B$206,H$7,'入力用（参加者）'!$T$5:$T$206)","v":0},null,0]
[null,null,"わからない",null,null,{"$f":"SUMIF('入力用（参加者）'!$B$5:$B$206,F$7,'入力用（参加者）'!$U$5:$U$206)","v":0},{"$f":"SUMIF('入力用（参加者）'!$B$5:$B$206,G$7,'入力用（参加者）'!$U$5:$U$206)","v":0},{"$f":"SUMIF('入力用（参加者）'!$B$5:$B$206,H$7,'入力用（参加者）'!$U$5:$U$206)","v":0},null,0]
[null,null,"無回答",null,null,{"$f":"SUMIF('入力用（参加者）'!$B$5:$B$206,F$7,'入力用（参加者）'!$V$5:$V$206)","v":0},{"$f":"SUMIF('入力用（参加者）'!$B$5:$B$206,G$7,'入力用（参加者）'!$V$5:$V$206)","v":0},{"$f":"SUMIF('入力用（参加者）'!$B$5:$B$206,H$7,'入力用（参加者）'!$V$5:$V$206)","v":0},null,0,null,{"$f":"SUM(J24:J28)","v":0}]
[null,"③ 科学に興味がわきましたか。"]
[null,null,"非常に興味がわいた",null,null,{"$f":"SUMIF('入力用（参加者）'!$B$5:$B$206,F$7,'入力用（参加者）'!$W$5:$W$206)","v":0},{"$f":"SUMIF('入力用（参加者）'!$B$5:$B$206,G$7,'入力用（参加者）'!$W$5:$W$206)","v":0},{"$f":"SUMIF('入力用（参加者）'!$B$5:$B$206,H$7,'入力用（参加者）'!$W$5:$W$206)","v":0},null,{"$f":"SUM(F30:I30)","v":0}]
[null,null,"少し興味がわいた",null,null,{"$f":"SUMIF('入力用（参加者）'!$B$5:$B$206,F$7,'入力用（参加者）'!$X$5:$X$206)","v":0},{"$f":"SUMIF('入力用（参加者）'!$B$5:$B$206,G$7,'入力用（参加者）'!$X$5:$X$206)","v":0},{"$f":"SUMIF('入力用（参加者）'!$B$5:$B$206,H$7,'入力用（参加者）'!$X$5:$X$206)","v":0},null,{"$f":"SUM(F31:I31)","v":0}]
[null,null,"興味がわかなかった",null,null,{"$f":"SUMIF('入力用（参加者）'!$B$5:$B$206,F$7,'入力用（参加者）'!$Y$5:$Y$206)","v":0},{"$f":"SUMIF('入力用（参加者）'!$B$5:$B$206,G$7,'入力用（参加者）'!$Y$5:$Y$206)","v":0},{"$f":"SUMIF('入力用（参加者）'!$B$5:$B$206,H$7,'入力用（参加者）'!$Y$5:$Y$206)","v":0},null,{"$f":"SUM(F32:I32)","v":0}]
[null,null,"わからない",null,null,{"$f":"SUMIF('入力用（参加者）'!$B$5:$B$206,F$7,'入力用（参加者）'!$Z$5:$Z$206)","v":0},{"$f":"SUMIF('入力用（参加者）'!$B$5:$B$206,G$7,'入力用（参加者）'!$Z$5:$Z$206)","v":0},{"$f":"SUMIF('入力用（参加者）'!$B$5:$B$206,H$7,'入力用（参加者）'!$Z$5:$Z$206)","v":0},null,{"$f":"SUM(F33:I33)","v":0}]
[null,null,"無回答",null,null,{"$f":"SUMIF('入力用（参加者）'!$B$5:$B$206,F$7,'入力用（参加者）'!$AA$5:$AA$206)","v":0},{"$f":"SUMIF('入力用（参加者）'!$B$5:$B$206,G$7,'入力用（参加者）'!$AA$5:$AA$206)","v":0},{"$f":"SUMIF('入力用（参加者）'!$B$5:$B$206,H$7,'入力用（参加者）'!$AA$5:$AA$206)","v":0},null,{"$f":"SUM(F34:I34)","v":0},null,{"$f":"SUM(J30:J34)","v":0}]
[null,"④ 研究者（大学の先生）からの話などを聞いて、将来、自分も研究をしてみたいと思いましたか。"]
[null,null,"とても思った",null,null,{"$f":"SUMIF('入力用（参加者）'!$B$5:$B$206,F$7,'入力用（参加者）'!$AB$5:$AB$205)","v":0},{"$f":"SUMIF('入力用（参加者）'!$B$5:$B$206,G$7,'入力用（参加者）'!$AB$5:$AB$205)","v":0},{"$f":"SUMIF('入力用（参加者）'!$B$5:$B$206,H$7,'入力用（参加者）'!$AB$5:$AB$205)","v":0},null,{"$f":"SUM(F36:I36)","v":0}]
[null,null,"できればしてみたい",null,null,{"$f":"SUMIF('入力用（参加者）'!$B$5:$B$206,F$7,'入力用（参加者）'!$AC$5:$AC$206)","v":0},{"$f":"SUMIF('入力用（参加者）'!$B$5:$B$206,G$7,'入力用（参加者）'!$AC$5:$AC$206)","v":0},{"$f":"SUMIF('入力用（参加者）'!$B$5:$B$206,H$7,'入力用（参加者）'!$AC$5:$AC$206)","v":0},null,{"$f":"SUM(F37:I37)","v":0}]
[null,null,"思わなかった",null,null,{"$f":"SUMIF('入力用（参加者）'!$B$5:$B$206,F$7,'入力用（参加者）'!$AD$5:$AD$206)","v":0},{"$f":"SUMIF('入力用（参加者）'!$B$5:$B$206,G$7,'入力用（参加者）'!$AD$5:$AD$206)","v":0},{"$f":"SUMIF('入力用（参加者）'!$B$5:$B$206,H$7,'入力用（参加者）'!$AD$5:$AD$206)","v":0},null,{"$f":"SUM(F38:I38)","v":0}]
[null,null,"わからない",null,null,{"$f":"SUMIF('入力用（参加者）'!$B$5:$B$206,F$7,'入力用（参加者）'!$AE$5:$AE$206)","v":0},{"$f":"SUMIF('入力用（参加者）'!$B$5:$B$206,G$7,'入力用（参加者）'!$AE$5:$AE$206)","v":0},{"$f":"SUMIF('入力用（参加者）'!$B$5:$B$206,H$7,'入力用（参加者）'!$AE$5:$AE$206)","v":0},null,{"$f":"SUM(F39:I39)","v":0}]
[null,null,"無回答",null,null,{"$f":"SUMIF('入力用（参加者）'!$B$5:$B$206,F$7,'入力用（参加者）'!$AF$5:$AF$206)","v":0},{"$f":"SUMIF('入力用（参加者）'!$B$5:$B$206,G$7,'入力用（参加者）'!$AF$5:$AF$206)","v":0},{"$f":"SUMIF('入力用（参加者）'!$B$5:$B$206,H$7,'入力用（参加者）'!$AF$5:$AF$206)","v":0},null,{"$f":"SUM(F40:I40)","v":0},null,{"$f":"SUM(J36:J40)","v":0}]
[null,"⑤ 参加しようと思った理由について教えてください。"]
[null,null,"内容に興味があったから",null,null,{"$f":"SUMIF('入力用（参加者）'!$B$5:$B$206,F$7,'入力用（参加者）'!$AG$5:$AG$206)","v":0},{"$f":"SUMIF('入力用（参加者）'!$B$5:$B$206,G$7,'入力用（参加者）'!$AG$5:$AG$206)","v":0},{"$f":"SUMIF('入力用（参加者）'!$B$5:$B$206,H$7,'入力用（参加者）'!$AG$5:$AG$206)","v":0},null,{"$f":"SUM(F42:I42)","v":0},"・\n・\n・"]
[null,null,"先生や両親にすすめられたから",null,null,{"$f":"SUMIF('入力用（参加者）'!$B$5:$B$206,F$7,'入力用（参加者）'!$AH$5:$AH$206)","v":0},{"$f":"SUMIF('入力用（参加者）'!$B$5:$B$206,G$7,'入力用（参加者）'!$AH$5:$AH$206)","v":0},{"$f":"SUMIF('入力用（参加者）'!$B$5:$B$206,H$7,'入力用（参加者）'!$AH$5:$AH$206)","v":0},null,{"$f":"SUM(F43:I43)","v":0}]
[null,null,"近所で開催されるから",null,null,{"$f":"SUMIF('入力用（参加者）'!$B$5:$B$206,F$7,'入力用（参加者）'!$AI$5:$AI$206)","v":0},{"$f":"SUMIF('入力用（参加者）'!$B$5:$B$206,G$7,'入力用（参加者）'!$AI$5:$AI$206)","v":0},{"$f":"SUMIF('入力用（参加者）'!$B$5:$B$206,H$7,'入力用（参加者）'!$AI$5:$AI$206)","v":0},null,{"$f":"SUM(F44:I44)","v":0}]
[null,null,"その他",null,null,{"$f":"SUMIF('入力用（参加者）'!$B$5:$B$206,F$7,'入力用（参加者）'!$AJ$5:$AJ$206)","v":0},{"$f":"SUMIF('入力用（参加者）'!$B$5:$B$206,G$7,'入力用（参加者）'!$AJ$5:$AJ$206)","v":0},{"$f":"SUMIF('入力用（参加者）'!$B$5:$B$206,H$7,'入力用（参加者）'!$AJ$5:$AJ$206)","v":0},null,{"$f":"SUM(F45:I45)","v":0}]
[null,null,"無回答",null,null,{"$f":"SUMIF('入力用（参加者）'!$B$5:$B$206,F$7,'入力用（参加者）'!$AK$5:$AK$205)","v":0},{"$f":"SUMIF('入力用（参加者）'!$B$5:$B$206,G$7,'入力用（参加者）'!$AK$5:$AK$205)","v":0},{"$f":"SUMIF('入力用（参加者）'!$B$5:$B$206,H$7,'入力用（参加者）'!$AK$5:$AK$205)","v":0},null,{"$f":"SUM(F46:I46)","v":0},null,{"$f":"SUM(J42:J46)","v":0}]
[null,"⑥ 今までひらめき☆ときめきサイエンスのプログラムに何回参加したことがありますか。"]
[null,null,"はじめて",null,null,{"$f":"SUMIF('入力用（参加者）'!$B$5:$B$206,F$7,'入力用（参加者）'!$AL$5:$AL$206)","v":0},{"$f":"SUMIF('入力用（参加者）'!$B$5:$B$206,G$7,'入力用（参加者）'!$AL$5:$AL$206)","v":0},{"$f":"SUMIF('入力用（参加者）'!$B$5:$B$206,H$7,'入力用（参加者）'!$AL$5:$AL$206)","v":0},null,{"$f":"SUM(F48:I48)","v":0}]
[null,null,"1～2回",null,null,{"$f":"SUMIF('入力用（参加者）'!$B$5:$B$206,F$7,'入力用（参加者）'!$AM$5:$AM$206)","v":0},{"$f":"SUMIF('入力用（参加者）'!$B$5:$B$206,G$7,'入力用（参加者）'!$AM$5:$AM$206)","v":0},{"$f":"SUMIF('入力用（参加者）'!$B$5:$B$206,H$7,'入力用（参加者）'!$AM$5:$AM$206)","v":0},null,{"$f":"SUM(F49:I49)","v":0}]
[null,null,"3～4回",null,null,{"$f":"SUMIF('入力用（参加者）'!$B$5:$B$206,F$7,'入力用（参加者）'!$AN$5:$AN$206)","v":0},{"$f":"SUMIF('入力用（参加者）'!$B$5:$B$206,G$7,'入力用（参加者）'!$AN$5:$AN$206)","v":0},{"$f":"SUMIF('入力用（参加者）'!$B$5:$B$206,H$7,'入力用（参加者）'!$AN$5:$AN$206)","v":0},null,{"$f":"SUM(F50:I50)","v":0}]
[null,null,"5回以上",null,null,{"$f":"SUMIF('入力用（参加者）'!$B$5:$B$206,F$7,'入力用（参加者）'!$AO$5:$AO$206)","v":0},{"$f":"SUMIF('入力用（参加者）'!$B$5:$B$206,G$7,'入力用（参加者）'!$AO$5:$AO$206)","v":0},{"$f":"SUMIF('入力用（参加者）'!$B$5:$B$206,H$7,'入力用（参加者）'!$AO$5:$AO$206)","v":0},null,{"$f":"SUM(F51:I51)","v":0}]
[null,null,"無回答",null,null,{"$f":"SUMIF('入力用（参加者）'!$B$5:$B$206,F$7,'入力用（参加者）'!$AP$5:$AP$206)","v":0},{"$f":"SUMIF('入力用（参加者）'!$B$5:$B$206,G$7,'入力用（参加者）'!$AP$5:$AP$206)","v":0},{"$f":"SUMIF('入力用（参加者）'!$B$5:$B$206,H$7,'入力用（参加者）'!$AP$5:$AP$206)","v":0},null,{"$f":"SUM(F52:I52)","v":0},null,{"$f":"SUM(J48:J52)","v":0}]
[null,null,null,null,null,null,null,null,null,null,{"$f":"E4&\"　\"&E5","v":"HT29000（機関名）　○○○○○○○○○○"}]
[]
[null,null,null,null,null,"小学生","中学生","高校生","保護者等","計","その他\n記入欄"]
[null,"⑦ このような企画があれば、また参加したいと思いましたか。"]
[null,null,"是非参加したい",null,null,{"$f":"SUMIF('入力用（参加者）'!$B$5:$B$206,F$7,'入力用（参加者）'!$AQ$5:$AQ$206)","v":0},{"$f":"SUMIF('入力用（参加者）'!$B$5:$B$206,G$7,'入力用（参加者）'!$AQ$5:$AQ$206)","v":0},{"$f":"SUMIF('入力用（参加者）'!$B$5:$B$206,H$7,'入力用（参加者）'!$AQ$5:$AQ$206)","v":0},null,{"$f":"SUM(F57:I57)","v":0}]
[null,null,"できれば参加したい",null,null,{"$f":"SUMIF('入力用（参加者）'!$B$5:$B$206,F$7,'入力用（参加者）'!$AR$5:$AR$206)","v":0},{"$f":"SUMIF('入力用（参加者）'!$B$5:$B$206,G$7,'入力用（参加者）'!$AR$5:$AR$206)","v":0},{"$f":"SUMIF('入力用（参加者）'!$B$5:$B$206,H$7,'入力用（参加者）'!$AR$5:$AR$206)","v":0},null,{"$f":"SUM(F58:I58)","v":0}]
[null,null,"参加したいとは思わない",null,null,{"$f":"SUMIF('入力用（参加者）'!$B$5:$B$206,F$7,'入力用（参加者）'!$AS$5:$AS$206)","v":0},{"$f":"SUMIF('入力用（参加者）'!$B$5:$B$206,G$7,'入力用（参加者）'!$AS$5:$AS$206)","v":0},{"$f":"SUMIF('入力用（参加者）'!$B$5:$B$206,H$7,'入力用（参加者）'!$AS$5:$AS$206)","v":0},null,0]
[null,null,"わからない",null,null,{"$f":"SUMIF('入力用（参加者）'!$B$5:$B$206,F$7,'入力用（参加者）'!$AT$5:$AT$206)","v":0},{"$f":"SUMIF('入力用（参加者）'!$B$5:$B$206,G$7,'入力用（参加者）'!$AT$5:$AT$206)","v":0},{"$f":"SUMIF('入力用（参加者）'!$B$5:$B$206,H$7,'入力用（参加者）'!$AT$5:$AT$206)","v":0},null,0]
[null,null,"無回答",null,null,{"$f":"SUMIF('入力用（参加者）'!$B$5:$B$206,F$7,'入力用（参加者）'!$AU$5:$AU$206)","v":0},{"$f":"SUMIF('入力用（参加者）'!$B$5:$B$206,G$7,'入力用（参加者）'!$AU$5:$AU$206)","v":0},{"$f":"SUMIF('入力用（参加者）'!$B$5:$B$206,H$7,'入力用（参加者）'!$AU$5:$AU$206)","v":0},null,0,null,{"$f":"SUM(J57:J61)","v":0}]
[null,"⑧ このような企画に参加しやすい時期はいつですか。"]
[null,null,"夏休み",null,null,{"$f":"SUMIF('入力用（参加者）'!$B$5:$B$206,F$7,'入力用（参加者）'!$AV$5:$AV$206)","v":0},{"$f":"SUMIF('入力用（参加者）'!$B$5:$B$206,G$7,'入力用（参加者）'!$AV$5:$AV$206)","v":0},{"$f":"SUMIF('入力用（参加者）'!$B$5:$B$206,H$7,'入力用（参加者）'!$AV$5:$AV$206)","v":0},{"$f":"SUMIF('入力用（参加者）'!$B$5:$B$206,I$7,'入力用（参加者）'!$AV$5:$AV$206)","v":0},{"$f":"SUM(F63:I63)","v":0},"・\n・\n・"]
[null,null,"冬休み",null,null,{"$f":"SUMIF('入力用（参加者）'!$B$5:$B$206,F$7,'入力用（参加者）'!$AW$5:$AW$206)","v":0},{"$f":"SUMIF('入力用（参加者）'!$B$5:$B$206,G$7,'入力用（参加者）'!$AW$5:$AW$206)","v":0},{"$f":"SUMIF('入力用（参加者）'!$B$5:$B$206,H$7,'入力用（参加者）'!$AW$5:$AW$206)","v":0},{"$f":"SUMIF('入力用（参加者）'!$B$5:$B$206,I$7,'入力用（参加者）'!$AW$5:$AW$206)","v":0},0]
[null,null,"土曜日",null,null,{"$f":"SUMIF('入力用（参加者）'!$B$5:$B$206,F$7,'入力用（参加者）'!$AX$5:$AX$206)","v":0},{"$f":"SUMIF('入力用（参加者）'!$B$5:$B$206,G$7,'入力用（参加者）'!$AX$5:$AX$206)","v":0},{"$f":"SUMIF('入力用（参加者）'!$B$5:$B$206,H$7,'入力用（参加者）'!$AX$5:$AX$206)","v":0},{"$f":"SUMIF('入力用（参加者）'!$B$5:$B$206,I$7,'入力用（参加者）'!$AX$5:$AX$206)","v":0},0]
[null,null,"日曜日",null,null,{"$f":"SUMIF('入力用（参加者）'!$B$5:$B$206,F$7,'入力用（参加者）'!$AY$5:$AY$206)","v":0},{"$f":"SUMIF('入力用（参加者）'!$B$5:$B$206,G$7,'入力用（参加者）'!$AY$5:$AY$206)","v":0},{"$f":"SUMIF('入力用（参加者）'!$B$5:$B$206,H$7,'入力用（参加者）'!$AY$5:$AY$206)","v":0},{"$f":"SUMIF('入力用（参加者）'!$B$5:$B$206,I$7,'入力用（参加者）'!$AY$5:$AY$206)","v":0},0]
[null,null,"その他",null,null,{"$f":"SUMIF('入力用（参加者）'!$B$5:$B$206,F$7,'入力用（参加者）'!$AZ$5:$AZ$206)","v":0},{"$f":"SUMIF('入力用（参加者）'!$B$5:$B$206,G$7,'入力用（参加者）'!$AZ$5:$AZ$206)","v":0},{"$f":"SUMIF('入力用（参加者）'!$B$5:$B$206,H$7,'入力用（参加者）'!$AZ$5:$AZ$206)","v":0},{"$f":"SUMIF('入力用（参加者）'!$B$5:$B$206,I$7,'入力用（参加者）'!$AZ$5:$AZ$206)","v":0},0]
[null,null,"無回答",null,null,{"$f":"SUMIF('入力用（参加者）'!$B$5:$B$206,F$7,'入力用（参加者）'!$BA$5:$BA$206)","v":0},{"$f":"SUMIF('入力用（参加者）'!$B$5:$B$206,G$7,'入力用（参加者）'!$BA$5:$BA$206)","v":0},{"$f":"SUMIF('入力用（参加者）'!$B$5:$B$206,H$7,'入力用（参加者）'!$BA$5:$BA$206)","v":0},{"$f":"SUMIF('入力用（参加者）'!$B$5:$B$206,I$7,'入力用（参加者）'!$BA$5:$BA$206)","v":0},0,null,{"$f":"SUM(J63:J68)","v":0}]
[null,"⑨ このプログラムを誰から（どこで）知りましたか。"]
[null,null,"学校の先生",null,null,{"$f":"SUMIF('入力用（参加者）'!$B$5:$B$206,F$7,'入力用（参加者）'!$BB$5:$BB$206)","v":0},{"$f":"SUMIF('入力用（参加者）'!$B$5:$B$206,G$7,'入力用（参加者）'!$BB$5:$BB$206)","v":0},{"$f":"SUMIF('入力用（参加者）'!$B$5:$B$206,H$7,'入力用（参加者）'!$BB$5:$BB$206)","v":0},{"$f":"SUMIF('入力用（参加者）'!$B$5:$B$206,I$7,'入力用（参加者）'!$BB$5:$BB$206)","v":0},{"$f":"SUM(F70:I70)","v":0},"（雑誌名）\n・\n・\n・\n（その他）\n・\n・\n・\n"]
[null,null,"家族、友達",null,null,{"$f":"SUMIF('入力用（参加者）'!$B$5:$B$206,F$7,'入力用（参加者）'!$BC$5:$BC$206)","v":0},{"$f":"SUMIF('入力用（参加者）'!$B$5:$B$206,G$7,'入力用（参加者）'!$BC$5:$BC$206)","v":0},{"$f":"SUMIF('入力用（参加者）'!$B$5:$B$206,H$7,'入力用（参加者）'!$BC$5:$BC$206)","v":0},{"$f":"SUMIF('入力用（参加者）'!$B$5:$B$206,I$7,'入力用（参加者）'!$BC$5:$BC$206)","v":0},0]
[null,null,"機関のホームページ",null,null,{"$f":"SUMIF('入力用（参加者）'!$B$5:$B$206,F$7,'入力用（参加者）'!$BD$5:$BD$206)","v":0},{"$f":"SUMIF('入力用（参加者）'!$B$5:$B$206,G$7,'入力用（参加者）'!$BD$5:$BD$206)","v":0},{"$f":"SUMIF('入力用（参加者）'!$B$5:$B$206,H$7,'入力用（参加者）'!$BD$5:$BD$206)","v":0},{"$f":"SUMIF('入力用（参加者）'!$B$5:$B$206,I$7,'入力用（参加者）'!$BD$5:$BD$206)","v":0},0]
[null,null,"日本学術振興会のホームページ",null,null,{"$f":"SUMIF('入力用（参加者）'!$B$5:$B$206,F$7,'入力用（参加者）'!$BE$5:$BE$206)","v":0},{"$f":"SUMIF('入力用（参加者）'!$B$5:$B$206,G$7,'入力用（参加者）'!$BE$5:$BE$206)","v":0},{"$f":"SUMIF('入力用（参加者）'!$B$5:$B$206,H$7,'入力用（参加者）'!$BE$5:$BE$206)","v":0},{"$f":"SUMIF('入力用（参加者）'!$B$5:$B$206,I$7,'入力用（参加者）'!$BE$5:$BE$206)","v":0},0]
[null,null,"広告・ポスターなど",null,null,{"$f":"SUMIF('入力用（参加者）'!$B$5:$B$206,F$7,'入力用（参加者）'!$BF$5:$BF$206)","v":0},{"$f":"SUMIF('入力用（参加者）'!$B$5:$B$206,G$7,'入力用（参加者）'!$BF$5:$BF$206)","v":0},{"$f":"SUMIF('入力用（参加者）'!$B$5:$B$206,H$7,'入力用（参加者）'!$BF$5:$BF$206)","v":0},{"$f":"SUMIF('入力用（参加者）'!$B$5:$B$206,I$7,'入力用（参加者）'!$BF$5:$BF$206)","v":0},0]
[null,null,"雑誌",null,null,{"$f":"SUMIF('入力用（参加者）'!$B$5:$B$206,F$7,'入力用（参加者）'!$BG$5:$BG$206)","v":0},{"$f":"SUMIF('入力用（参加者）'!$B$5:$B$206,G$7,'入力用（参加者）'!$BG$5:$BG$206)","v":0},{"$f":"SUMIF('入力用（参加者）'!$B$5:$B$206,H$7,'入力用（参加者）'!$BG$5:$BG$206)","v":0},{"$f":"SUMIF('入力用（参加者）'!$B$5:$B$206,I$7,'入力用（参加者）'!$BG$5:$BG$206)","v":0},0]
[null,null,"その他",null,null,{"$f":"SUMIF('入力用（参加者）'!$B$5:$B$206,F$7,'入力用（参加者）'!$BH$5:$BH$206)","v":0},{"$f":"SUMIF('入力用（参加者）'!$B$5:$B$206,G$7,'入力用（参加者）'!$BH$5:$BH$206)","v":0},{"$f":"SUMIF('入力用（参加者）'!$B$5:$B$206,H$7,'入力用（参加者）'!$BH$5:$BH$206)","v":0},{"$f":"SUMIF('入力用（参加者）'!$B$5:$B$206,I$7,'入力用（参加者）'!$BH$5:$BH$206)","v":0},0]
[null,null,"無回答",null,null,{"$f":"SUMIF('入力用（参加者）'!$B$5:$B$206,F$7,'入力用（参加者）'!$BI$5:$BI$206)","v":0},{"$f":"SUMIF('入力用（参加者）'!$B$5:$B$206,G$7,'入力用（参加者）'!$BI$5:$BI$206)","v":0},{"$f":"SUMIF('入力用（参加者）'!$B$5:$B$206,H$7,'入力用（参加者）'!$BI$5:$BI$206)","v":0},{"$f":"SUMIF('入力用（参加者）'!$B$5:$B$206,I$7,'入力用（参加者）'!$BI$5:$BI$206)","v":0},0,null,{"$f":"SUM(J70:J77)","v":0}]
[null,"⑩ 科研費について知っていましたか。"]
[null,null,"よく知っていた",null,null,{"$f":"SUMIF('入力用（参加者）'!$B$5:$B$206,F$7,'入力用（参加者）'!$BJ$5:$BJ$206)","v":0},{"$f":"SUMIF('入力用（参加者）'!$B$5:$B$206,G$7,'入力用（参加者）'!$BJ$5:$BJ$206)","v":0},{"$f":"SUMIF('入力用（参加者）'!$B$5:$B$206,H$7,'入力用（参加者）'!$BJ$5:$BJ$206)","v":0},{"$f":"SUMIF('入力用（参加者）'!$B$5:$B$206,I$7,'入力用（参加者）'!$BJ$5:$BJ$206)","v":0},{"$f":"SUM(F79:I79)","v":0}]
[null,null,"少し知っていた",null,null,{"$f":"SUMIF('入力用（参加者）'!$B$5:$B$206,F$7,'入力用（参加者）'!$BK$5:$BK$206)","v":0},{"$f":"SUMIF('入力用（参加者）'!$B$5:$B$206,G$7,'入力用（参加者）'!$BK$5:$BK$206)","v":0},{"$f":"SUMIF('入力用（参加者）'!$B$5:$B$206,H$7,'入力用（参加者）'!$BK$5:$BK$206)","v":0},{"$f":"SUMIF('入力用（参加者）'!$B$5:$B$206,I$7,'入力用（参加者）'!$BK$5:$BK$206)","v":0},{"$f":"SUM(F80:I80)","v":0}]
[null,null,"聞いたことはあった",null,null,{"$f":"SUMIF('入力用（参加者）'!$B$5:$B$206,F$7,'入力用（参加者）'!$BL$5:$BL$206)","v":0},{"$f":"SUMIF('入力用（参加者）'!$B$5:$B$206,G$7,'入力用（参加者）'!$BL$5:$BL$206)","v":0},{"$f":"SUMIF('入力用（参加者）'!$B$5:$B$206,H$7,'入力用（参加者）'!$BL$5:$BL$206)","v":0},{"$f":"SUMIF('入力用（参加者）'!$B$5:$B$206,I$7,'入力用（参加者）'!$BL$5:$BL$206)","v":0},{"$f":"SUM(F81:I81)","v":0}]
[null,null,"今日初めて知った",null,null,{"$f":"SUMIF('入力用（参加者）'!$B$5:$B$206,F$7,'入力用（参加者）'!$BM$5:$BM$206)","v":0},{"$f":"SUMIF('入力用（参加者）'!$B$5:$B$206,G$7,'入力用（参加者）'!$BM$5:$BM$206)","v":0},{"$f":"SUMIF('入力用（参加者）'!$B$5:$B$206,H$7,'入力用（参加者）'!$BM$5:$BM$206)","v":0},{"$f":"SUMIF('入力用（参加者）'!$B$5:$B$206,I$7,'入力用（参加者）'!$BM$5:$BM$206)","v":0},{"$f":"SUM(F82:I82)","v":0}]
[null,null,"無回答",null,null,{"$f":"SUMIF('入力用（参加者）'!$B$5:$B$206,F$7,'入力用（参加者）'!$BN$5:$BN$206)","v":0},{"$f":"SUMIF('入力用（参加者）'!$B$5:$B$206,G$7,'入力用（参加者）'!$BN$5:$BN$206)","v":0},{"$f":"SUMIF('入力用（参加者）'!$B$5:$B$206,H$7,'入力用（参加者）'!$BN$5:$BN$206)","v":0},{"$f":"SUMIF('入力用（参加者）'!$B$5:$B$206,I$7,'入力用（参加者）'!$BN$5:$BN$206)","v":0},{"$f":"SUM(F83:I83)","v":0},null,{"$f":"SUM(J79:J83)","v":0}]
[null,"　その他　意見・感想など"]
[null,"・"]
[null,"・"]
[null,"・"]
[null,"・"]
[null,"・"]
[null,"・"]
[null,"・"]
[null,"・"]
[null,"・"]
[null,"・"]
[null,"・"]
[null,"・"]
[null,"・"]
[null,"・"]
[null,"・"]
[null,"・"]
[null,"・"]
[null,"・"]

{"sheet":"入力用（参加者）","index":2,"n_rows":207,"n_cols":78,"rows_kept":207,"cut":false,"hidden":false,"merged":[[2,61,2,65],[2,37,2,41],[2,2,2,5],[2,10,2,11],[2,6,2,9],[2,12,2,16],[2,17,2,21],[2,22,2,26],[2,27,2,31],[2,32,2,36],[2,42,2,46],[2,47,2,52],[2,53,2,60]]}
[]
["小計",null,{"$f":"SUM(C5:C206)","v":0},0,0,0,{"$f":"SUM(G5:G206)","v":0},{"$f":"SUM(H5:H206)","v":0},{"$f":"SUM(I5:I206)","v":0},{"$f":"SUM(J5:J206)","v":0},0,0,0,0,0,0,0,0,0,0,0,0,0,0,0,0,0,0,0,0,0,0,0,0,{"$f":"SUM(AI5:AI206)","v":0},0,0,0,0,0,0,0,0,0,0,0,0,0,0,0,0,0,0,0,0,0,0,0,0,0,0,0,0,0,0,0]
[null,null,"対象者",null,null,null,"所属",null,null,null,"性別",null,"Q1",null,null,null,null,"Q2",null,null,null,null,"Q3",null,null,null,null,"Q4",null,null,null,null,"Q5",null,null,null,null,"Q6",null,null,null,null,"Q7",null,null,null,null,"Q8",null,null,null,null,null,"Q9",null,null,null,null,null,null,null,"Q10"]
[null,null,"小学生","中学生","高校生","保護者等","国立","公立","私立","該当\nなし","男","女","とても面白かった","面白かった","面白くなかった","分からない","無回答","とても分かりやすかった","分かりやすかった","わかりにくかった","分からない","無回答","非常に興味がわいた","少し興味がわいた","興味がわかなかった","分からない","無回答","とても思った","できればしてみたい","思わなかった","わからない","無回答","内容に興味があった","先生や両親にすすめられたから","近所で開催されるから","その他","無回答","はじめて","1～2回","3～4回","5回以上","無回答","是非参加したい","できれば参加したい","参加したいとは思わない","分からない","無回答","夏休み","冬休み","土曜日","日曜日","その他","無回答","学校の先生","家族、友達","機関のHP","振興会のHP","広告・ポスターなど","雑誌","その他","無回答","よく知っていた","少し知っていた","聞いたことはあった","今日初めて知った","無回答",null,"対象者","性別","所属","Q1","Q2","Q3","Q4","Q5","Q6","Q7","Q10"]
[1,{"$f":"IF(C5=1,\"小学生\",IF(D5=1,\"中学生\",IF(E5=1,\"高校生\",IF(F5=1,\"保護者等\",\"\"))))","v":""},null,null,null,null,null,null,null,null,null,null,null,null,null,null,null,null,null,null,null,null,null,null,null,null,null,null,null,null,null,null,null,null,null,null,null,null,null,null,null,null,null,null,null,null,null,null,null,null,null,null,null,null,null,null,null,null,null,null,null,null,null,null,null,null,null,{"$f":"SUM(C5:F5)","v":0},{"$f":"SUM(K5:L5)","v":0},{"$f":"SUM(G5:J5)","v":0},{"$f":"SUM(M5:Q5)","v":0},{"$f":"SUM(R5:V5)","v":0},{"$f":"SUM(W5:AA5)","v":0},{"$f":"SUM(AB5:AF5)","v":0},{"$f":"SUM(AG5:AK5)","v":0},{"$f":"SUM(AL5:AP5)","v":0},{"$f":"SUM(AQ5:AU5)","v":0},{"$f":"SUM(BJ5:BN5)","v":0}]
[2,{"$f":"IF(C6=1,\"小学生\",IF(D6=1,\"中学生\",IF(E6=1,\"高校生\",IF(F6=1,\"保護者等\",\"\"))))","v":""},null,null,null,null,null,null,null,null,null,null,null,null,null,null,null,null,null,null,null,null,null,null,null,null,null,null,null,null,null,null,null,null,null,null,null,null,null,null,null,null,null,null,null,null,null,null,null,null,null,null,null,null,null,null,null,null,null,null,null,null,null,null,null,null,null,0,0,0,{"$f":"SUM(M6:Q6)","v":0},{"$f":"SUM(R6:V6)","v":0},{"$f":"SUM(W6:AA6)","v":0},{"$f":"SUM(AB6:AF6)","v":0},{"$f":"SUM(AG6:AK6)","v":0},{"$f":"SUM(AL6:AP6)","v":0},{"$f":"SUM(AQ6:AU6)","v":0},{"$f":"SUM(BJ6:BN6)","v":0}]
[3,"",null,null,null,null,null,null,null,null,null,null,null,null,null,null,null,null,null,null,null,null,null,null,null,null,null,null,null,null,null,null,null,null,null,null,null,null,null,null,null,null,null,null,null,null,null,null,null,null,null,null,null,null,null,null,null,null,null,null,null,null,null,null,null,null,null,0,0,0,0,0,0,0,0,0,0,0]
[4,"",null,null,null,null,null,null,null,null,null,null,null,null,null,null,null,null,null,null,null,null,null,null,null,null,null,null,null,null,null,null,null,null,null,null,null,null,null,null,null,null,null,null,null,null,null,null,null,null,null,null,null,null,null,null,null,null,null,null,null,null,null,null,null,null,null,0,0,0,0,0,0,0,0,0,0,0]
[5,"",null,null,null,null,null,null,null,null,null,null,null,null,null,null,null,null,null,null,null,null,null,null,null,null,null,null,null,null,null,null,null,null,null,null,null,null,null,null,null,null,null,null,null,null,null,null,null,null,null,null,null,null,null,null,null,null,null,null,null,null,null,null,null,null,null,0,0,0,0,0,0,0,0,0,0,0]
[6,"",null,null,null,null,null,null,null,null,null,null,null,null,null,null,null,null,null,null,null,null,null,null,null,null,null,null,null,null,null,null,null,null,null,null,null,null,null,null,null,null,null,null,null,null,null,null,null,null,null,null,null,null,null,null,null,null,null,null,null,null,null,null,null,null,null,0,0,0,0,0,0,0,0,0,0,0]
[7,"",null,null,null,null,null,null,null,null,null,null,null,null,null,null,null,null,null,null,null,null,null,null,null,null,null,null,null,null,null,null,null,null,null,null,null,null,null,null,null,null,null,null,null,null,null,null,null,null,null,null,null,null,null,null,null,null,null,null,null,null,null,null,null,null,null,0,0,0,0,0,0,0,0,0,0,0]
[8,"",null,null,null,null,null,null,null,null,null,null,null,null,null,null,null,null,null,null,null,null,null,null,null,null,null,null,null,null,null,null,null,null,null,null,null,null,null,null,null,null,null,null,null,null,null,null,null,null,null,null,null,null,null,null,null,null,null,null,null,null,null,null,null,null,null,0,0,0,0,0,0,0,0,0,0,0]
[9,"",null,null,null,null,null,null,null,null,null,null,null,null,null,null,null,null,null,null,null,null,null,null,null,null,null,null,null,null,null,null,null,null,null,null,null,null,null,null,null,null,null,null,null,null,null,null,null,null,null,null,null,null,null,null,null,null,null,null,null,null,null,null,null,null,null,0,0,0,0,0,0,0,0,0,0,0]
[10,"",null,null,null,null,null,null,null,null,null,null,null,null,null,null,null,null,null,null,null,null,null,null,null,null,null,null,null,null,null,null,null,null,null,null,null,null,null,null,null,null,null,null,null,null,null,null,null,null,null,null,null,null,null,null,null,null,null,null,null,null,null,null,null,null,null,0,0,0,0,0,0,0,0,0,0,0]
[11,"",null,null,null,null,null,null,null,null,null,null,null,null,null,null,null,null,null,null,null,null,null,null,null,null,null,null,null,null,null,null,null,null,null,null,null,null,null,null,null,null,null,null,null,null,null,null,null,null,null,null,null,null,null,null,null,null,null,null,null,null,null,null,null,null,null,0,0,0,0,0,0,0,0,0,0,0]
[12,"",null,null,null,null,null,null,null,null,null,null,null,null,null,null,null,null,null,null,null,null,null,null,null,null,null,null,null,null,null,null,null,null,null,null,null,null,null,null,null,null,null,null,null,null,null,null,null,null,null,null,null,null,null,null,null,null,null,null,null,null,null,null,null,null,null,0,0,0,0,0,0,0,0,0,0,0]
[13,"",null,null,null,null,null,null,null,null,null,null,null,null,null,null,null,null,null,null,null,null,null,null,null,null,null,null,null,null,null,null,null,null,null,null,null,null,null,null,null,null,null,null,null,null,null,null,null,null,null,null,null,null,null,null,null,null,null,null,null,null,null,null,null,null,null,0,0,0,0,0,0,0,0,0,0,0]
[14,"",null,null,null,null,null,null,null,null,null,null,null,null,null,null,null,null,null,null,null,null,null,null,null,null,null,null,null,null,null,null,null,null,null,null,null,null,null,null,null,null,null,null,null,null,null,null,null,null,null,null,null,null,null,null,null,null,null,null,null,null,null,null,null,null,null,0,0,0,0,0,0,0,0,0,0,0]
[15,"",null,null,null,null,null,null,null,null,null,null,null,null,null,null,null,null,null,null,null,null,null,null,null,null,null,null,null,null,null,null,null,null,null,null,null,null,null,null,null,null,null,null,null,null,null,null,null,null,null,null,null,null,null,null,null,null,null,null,null,null,null,null,null,null,null,0,0,0,0,0,0,0,0,0,0,0]
[16,"",null,null,null,null,null,null,null,null,null,null,null,null,null,null,null,null,null,null,null,null,null,null,null,null,null,null,null,null,null,null,null,null,null,null,null,null,null,null,null,null,null,null,null,null,null,null,null,null,null,null,null,null,null,null,null,null,null,null,null,null,null,null,null,null,null,0,0,0,0,0,0,0,0,0,0,0]
[17,"",null,null,null,null,null,null,null,null,null,null,null,null,null,null,null,null,null,null,null,null,null,null,null,null,null,null,null,null,null,null,null,null,null,null,null,null,null,null,null,null,null,null,null,null,null,null,null,null,null,null,null,null,null,null,null,null,null,null,null,null,null,null,null,null,null,0,0,0,0,0,0,0,0,0,0,0]
[18,"",null,null,null,null,null,null,null,null,null,null,null,null,null,null,null,null,null,null,null,null,null,null,null,null,null,null,null,null,null,null,null,null,null,null,null,null,null,null,null,null,null,null,null,null,null,null,null,null,null,null,null,null,null,null,null,null,null,null,null,null,null,null,null,null,null,0,0,0,0,0,0,0,0,0,0,0]
[19,"",null,null,null,null,null,null,null,null,null,null,null,null,null,null,null,null,null,null,null,null,null,null,null,null,null,null,null,null,null,null,null,null,null,null,null,null,null,null,null,null,null,null,null,null,null,null,null,null,null,null,null,null,null,null,null,null,null,null,null,null,null,null,null,null,null,0,0,0,0,0,0,0,0,0,0,0]
[20,"",null,null,null,null,null,null,null,null,null,null,null,null,null,null,null,null,null,null,null,null,null,null,null,null,null,null,null,null,null,null,null,null,null,null,null,null,null,null,null,null,null,null,null,null,null,null,null,null,null,null,null,null,null,null,null,null,null,null,null,null,null,null,null,null,null,0,0,0,0,0,0,0,0,0,0,0]
[21,"",null,null,null,null,null,null,null,null,null,null,null,null,null,null,null,null,null,null,null,null,null,null,null,null,null,null,null,null,null,null,null,null,null,null,null,null,null,null,null,null,null,null,null,null,null,null,null,null,null,null,null,null,null,null,null,null,null,null,null,null,null,null,null,null,null,0,0,0,0,0,0,0,0,0,0,0]
[22,"",null,null,null,null,null,null,null,null,null,null,null,null,null,null,null,null,null,null,null,null,null,null,null,null,null,null,null,null,null,null,null,null,null,null,null,null,null,null,null,null,null,null,null,null,null,null,null,null,null,null,null,null,null,null,null,null,null,null,null,null,null,null,null,null,null,0,0,0,0,0,0,0,0,0,0,0]
[23,"",null,null,null,null,null,null,null,null,null,null,null,null,null,null,null,null,null,null,null,null,null,null,null,null,null,null,null,null,null,null,null,null,null,null,null,null,null,null,null,null,null,null,null,null,null,null,null,null,null,null,null,null,null,null,null,null,null,null,null,null,null,null,null,null,null,0,0,0,0,0,0,0,0,0,0,0]
[24,"",null,null,null,null,null,null,null,null,null,null,null,null,null,null,null,null,null,null,null,null,null,null,null,null,null,null,null,null,null,null,null,null,null,null,null,null,null,null,null,null,null,null,null,null,null,null,null,null,null,null,null,null,null,null,null,null,null,null,null,null,null,null,null,null,null,0,0,0,0,0,0,0,0,0,0,0]
[25,"",null,null,null,null,null,null,null,null,null,null,null,null,null,null,null,null,null,null,null,null,null,null,null,null,null,null,null,null,null,null,null,null,null,null,null,null,null,null,null,null,null,null,null,null,null,null,null,null,null,null,null,null,null,null,null,null,null,null,null,null,null,null,null,null,null,0,0,0,0,0,0,0,0,0,0,0]
[26,"",null,null,null,null,null,null,null,null,null,null,null,null,null,null,null,null,null,null,null,null,null,null,null,null,null,null,null,null,null,null,null,null,null,null,null,null,null,null,null,null,null,null,null,null,null,null,null,null,null,null,null,null,null,null,null,null,null,null,null,null,null,null,null,null,null,0,0,0,0,0,0,0,0,0,0,0]
[27,"",null,null,null,null,null,null,null,null,null,null,null,null,null,null,null,null,null,null,null,null,null,null,null,null,null,null,null,null,null,null,null,null,null,null,null,null,null,null,null,null,null,null,null,null,null,null,null,null,null,null,null,null,null,null,null,null,null,null,null,null,null,null,null,null,null,0,0,0,0,0,0,0,0,0,0,0]
[28,"",null,null,null,null,null,null,null,null,null,null,null,null,null,null,null,null,null,null,null,null,null,null,null,null,null,null,null,null,null,null,null,null,null,null,null,null,null,null,null,null,null,null,null,null,null,null,null,null,null,null,null,null,null,null,null,null,null,null,null,null,null,null,null,null,null,0,0,0,0,0,0,0,0,0,0,0]
[29,"",null,null,null,null,null,null,null,null,null,null,null,null,null,null,null,null,null,null,null,null,null,null,null,null,null,null,null,null,null,null,null,null,null,null,null,null,null,null,null,null,null,null,null,null,null,null,null,null,null,null,null,null,null,null,null,null,null,null,null,null,null,null,null,null,null,0,0,0,0,0,0,0,0,0,0,0]
[30,"",null,null,null,null,null,null,null,null,null,null,null,null,null,null,null,null,null,null,null,null,null,null,null,null,null,null,null,null,null,null,null,null,null,null,null,null,null,null,null,null,null,null,null,null,null,null,null,null,null,null,null,null,null,null,null,null,null,null,null,null,null,null,null,null,null,0,0,0,0,0,0,0,0,0,0,0]
[31,"",null,null,null,null,null,null,null,null,null,null,null,null,null,null,null,null,null,null,null,null,null,null,null,null,null,null,null,null,null,null,null,null,null,null,null,null,null,null,null,null,null,null,null,null,null,null,null,null,null,null,null,null,null,null,null,null,null,null,null,null,null,null,null,null,null,0,0,0,0,0,0,0,0,0,0,0]
[32,"",null,null,null,null,null,null,null,null,null,null,null,null,null,null,null,null,null,null,null,null,null,null,null,null,null,null,null,null,null,null,null,null,null,null,null,null,null,null,null,null,null,null,null,null,null,null,null,null,null,null,null,null,null,null,null,null,null,null,null,null,null,null,null,null,null,0,0,0,0,0,0,0,0,0,0,0]
[33,"",null,null,null,null,null,null,null,null,null,null,null,null,null,null,null,null,null,null,null,null,null,null,null,null,null,null,null,null,null,null,null,null,null,null,null,null,null,null,null,null,null,null,null,null,null,null,null,null,null,null,null,null,null,null,null,null,null,null,null,null,null,null,null,null,null,0,0,0,0,0,0,0,0,0,0,0]
[34,"",null,null,null,null,null,null,null,null,null,null,null,null,null,null,null,null,null,null,null,null,null,null,null,null,null,null,null,null,null,null,null,null,null,null,null,null,null,null,null,null,null,null,null,null,null,null,null,null,null,null,null,null,null,null,null,null,null,null,null,null,null,null,null,null,null,0,0,0,0,0,0,0,0,0,0,0]
[35,"",null,null,null,null,null,null,null,null,null,null,null,null,null,null,null,null,null,null,null,null,null,null,null,null,null,null,null,null,null,null,null,null,null,null,null,null,null,null,null,null,null,null,null,null,null,null,null,null,null,null,null,null,null,null,null,null,null,null,null,null,null,null,null,null,null,0,0,0,0,0,0,0,0,0,0,0]
[36,"",null,null,null,null,null,null,null,null,null,null,null,null,null,null,null,null,null,null,null,null,null,null,null,null,null,null,null,null,null,null,null,null,null,null,null,null,null,null,null,null,null,null,null,null,null,null,null,null,null,null,null,null,null,null,null,null,null,null,null,null,null,null,null,null,null,0,0,0,0,0,0,0,0,0,0,0]
[37,"",null,null,null,null,null,null,null,null,null,null,null,null,null,null,null,null,null,null,null,null,null,null,null,null,null,null,null,null,null,null,null,null,null,null,null,null,null,null,null,null,null,null,null,null,null,null,null,null,null,null,null,null,null,null,null,null,null,null,null,null,null,null,null,null,null,0,0,0,0,0,0,0,0,0,0,0]
[38,"",null,null,null,null,null,null,null,null,null,null,null,null,null,null,null,null,null,null,null,null,null,null,null,null,null,null,null,null,null,null,null,null,null,null,null,null,null,null,null,null,null,null,null,null,null,null,null,null,null,null,null,null,null,null,null,null,null,null,null,null,null,null,null,null,null,0,0,0,0,0,0,0,0,0,0,0]
[39,"",null,null,null,null,null,null,null,null,null,null,null,null,null,null,null,null,null,null,null,null,null,null,null,null,null,null,null,null,null,null,null,null,null,null,null,null,null,null,null,null,null,null,null,null,null,null,null,null,null,null,null,null,null,null,null,null,null,null,null,null,null,null,null,null,null,0,0,0,0,0,0,0,0,0,0,0]
[40,"",null,null,null,null,null,null,null,null,null,null,null,null,null,null,null,null,null,null,null,null,null,null,null,null,null,null,null,null,null,null,null,null,null,null,null,null,null,null,null,null,null,null,null,null,null,null,null,null,null,null,null,null,null,null,null,null,null,null,null,null,null,null,null,null,null,0,0,0,0,0,0,0,0,0,0,0]
[41,"",null,null,null,null,null,null,null,null,null,null,null,null,null,null,null,null,null,null,null,null,null,null,null,null,null,null,null,null,null,null,null,null,null,null,null,null,null,null,null,null,null,null,null,null,null,null,null,null,null,null,null,null,null,null,null,null,null,null,null,null,null,null,null,null,null,0,0,0,0,0,0,0,0,0,0,0]
[42,"",null,null,null,null,null,null,null,null,null,null,null,null,null,null,null,null,null,null,null,null,null,null,null,null,null,null,null,null,null,null,null,null,null,null,null,null,null,null,null,null,null,null,null,null,null,null,null,null,null,null,null,null,null,null,null,null,null,null,null,null,null,null,null,null,null,0,0,0,0,0,0,0,0,0,0,0]
[43,"",null,null,null,null,null,null,null,null,null,null,null,null,null,null,null,null,null,null,null,null,null,null,null,null,null,null,null,null,null,null,null,null,null,null,null,null,null,null,null,null,null,null,null,null,null,null,null,null,null,null,null,null,null,null,null,null,null,null,null,null,null,null,null,null,null,0,0,0,0,0,0,0,0,0,0,0]
[44,"",null,null,null,null,null,null,null,null,null,null,null,null,null,null,null,null,null,null,null,null,null,null,null,null,null,null,null,null,null,null,null,null,null,null,null,null,null,null,null,null,null,null,null,null,null,null,null,null,null,null,null,null,null,null,null,null,null,null,null,null,null,null,null,null,null,0,0,0,0,0,0,0,0,0,0,0]
[45,"",null,null,null,null,null,null,null,null,null,null,null,null,null,null,null,null,null,null,null,null,null,null,null,null,null,null,null,null,null,null,null,null,null,null,null,null,null,null,null,null,null,null,null,null,null,null,null,null,null,null,null,null,null,null,null,null,null,null,null,null,null,null,null,null,null,0,0,0,0,0,0,0,0,0,0,0]
[46,"",null,null,null,null,null,null,null,null,null,null,null,null,null,null,null,null,null,null,null,null,null,null,null,null,null,null,null,null,null,null,null,null,null,null,null,null,null,null,null,null,null,null,null,null,null,null,null,null,null,null,null,null,null,null,null,null,null,null,null,null,null,null,null,null,null,0,0,0,0,0,0,0,0,0,0,0]
[47,"",null,null,null,null,null,null,null,null,null,null,null,null,null,null,null,null,null,null,null,null,null,null,null,null,null,null,null,null,null,null,null,null,null,null,null,null,null,null,null,null,null,null,null,null,null,null,null,null,null,null,null,null,null,null,null,null,null,null,null,null,null,null,null,null,null,0,0,0,0,0,0,0,0,0,0,0]
[48,"",null,null,null,null,null,null,null,null,null,null,null,null,null,null,null,null,null,null,null,null,null,null,null,null,null,null,null,null,null,null,null,null,null,null,null,null,null,null,null,null,null,null,null,null,null,null,null,null,null,null,null,null,null,null,null,null,null,null,null,null,null,null,null,null,null,0,0,0,0,0,0,0,0,0,0,0]
[49,"",null,null,null,null,null,null,null,null,null,null,null,null,null,null,null,null,null,null,null,null,null,null,null,null,null,null,null,null,null,null,null,null,null,null,null,null,null,null,null,null,null,null,null,null,null,null,null,null,null,null,null,null,null,null,null,null,null,null,null,null,null,null,null,null,null,0,0,0,0,0,0,0,0,0,0,0]
[50,"",null,null,null,null,null,null,null,null,null,null,null,null,null,null,null,null,null,null,null,null,null,null,null,null,null,null,null,null,null,null,null,null,null,null,null,null,null,null,null,null,null,null,null,null,null,null,null,null,null,null,null,null,null,null,null,null,null,null,null,null,null,null,null,null,null,0,0,0,0,0,0,0,0,0,0,0]
[51,"",null,null,null,null,null,null,null,null,null,null,null,null,null,null,null,null,null,null,null,null,null,null,null,null,null,null,null,null,null,null,null,null,null,null,null,null,null,null,null,null,null,null,null,null,null,null,null,null,null,null,null,null,null,null,null,null,null,null,null,null,null,null,null,null,null,0,0,0,0,0,0,0,0,0,0,0]
[52,"",null,null,null,null,null,null,null,null,null,null,null,null,null,null,null,null,null,null,null,null,null,null,null,null,null,null,null,null,null,null,null,null,null,null,null,null,null,null,null,null,null,null,null,null,null,null,null,null,null,null,null,null,null,null,null,null,null,null,null,null,null,null,null,null,null,0,0,0,0,0,0,0,0,0,0,0]
[53,"",null,null,null,null,null,null,null,null,null,null,null,null,null,null,null,null,null,null,null,null,null,null,null,null,null,null,null,null,null,null,null,null,null,null,null,null,null,null,null,null,null,null,null,null,null,null,null,null,null,null,null,null,null,null,null,null,null,null,null,null,null,null,null,null,null,0,0,0,0,0,0,0,0,0,0,0]
[54,"",null,null,null,null,null,null,null,null,null,null,null,null,null,null,null,null,null,null,null,null,null,null,null,null,null,null,null,null,null,null,null,null,null,null,null,null,null,null,null,null,null,null,null,null,null,null,null,null,null,null,null,null,null,null,null,null,null,null,null,null,null,null,null,null,null,0,0,0,0,0,0,0,0,0,0,0]
[55,"",null,null,null,null,null,null,null,null,null,null,null,null,null,null,null,null,null,null,null,null,null,null,null,null,null,null,null,null,null,null,null,null,null,null,null,null,null,null,null,null,null,null,null,null,null,null,null,null,null,null,null,null,null,null,null,null,null,null,null,null,null,null,null,null,null,0,0,0,0,0,0,0,0,0,0,0]
[56,"",null,null,null,null,null,null,null,null,null,null,null,null,null,null,null,null,null,null,null,null,null,null,null,null,null,null,null,null,null,null,null,null,null,null,null,null,null,null,null,null,null,null,null,null,null,null,null,null,null,null,null,null,null,null,null,null,null,null,null,null,null,null,null,null,null,0,0,0,0,0,0,0,0,0,0,0]
[57,"",null,null,null,null,null,null,null,null,null,null,null,null,null,null,null,null,null,null,null,null,null,null,null,null,null,null,null,null,null,null,null,null,null,null,null,null,null,null,null,null,null,null,null,null,null,null,null,null,null,null,null,null,null,null,null,null,null,null,null,null,null,null,null,null,null,0,0,0,0,0,0,0,0,0,0,0]
[58,"",null,null,null,null,null,null,null,null,null,null,null,null,null,null,null,null,null,null,null,null,null,null,null,null,null,null,null,null,null,null,null,null,null,null,null,null,null,null,null,null,null,null,null,null,null,null,null,null,null,null,null,null,null,null,null,null,null,null,null,null,null,null,null,null,null,0,0,0,0,0,0,0,0,0,0,0]
[59,"",null,null,null,null,null,null,null,null,null,null,null,null,null,null,null,null,null,null,null,null,null,null,null,null,null,null,null,null,null,null,null,null,null,null,null,null,null,null,null,null,null,null,null,null,null,null,null,null,null,null,null,null,null,null,null,null,null,null,null,null,null,null,null,null,null,0,0,0,0,0,0,0,0,0,0,0]
[60,"",null,null,null,null,null,null,null,null,null,null,null,null,null,null,null,null,null,null,null,null,null,null,null,null,null,null,null,null,null,null,null,null,null,null,null,null,null,null,null,null,null,null,null,null,null,null,null,null,null,null,null,null,null,null,null,null,null,null,null,null,null,null,null,null,null,0,0,0,0,0,0,0,0,0,0,0]
[61,"",null,null,null,null,null,null,null,null,null,null,null,null,null,null,null,null,null,null,null,null,null,null,null,null,null,null,null,null,null,null,null,null,null,null,null,null,null,null,null,null,null,null,null,null,null,null,null,null,null,null,null,null,null,null,null,null,null,null,null,null,null,null,null,null,null,0,0,0,0,0,0,0,0,0,0,0]
[62,"",null,null,null,null,null,null,null,null,null,null,null,null,null,null,null,null,null,null,null,null,null,null,null,null,null,null,null,null,null,null,null,null,null,null,null,null,null,null,null,null,null,null,null,null,null,null,null,null,null,null,null,null,null,null,null,null,null,null,null,null,null,null,null,null,null,0,0,0,0,0,0,0,0,0,0,0]
[63,"",null,null,null,null,null,null,null,null,null,null,null,null,null,null,null,null,null,null,null,null,null,null,null,null,null,null,null,null,null,null,null,null,null,null,null,null,null,null,null,null,null,null,null,null,null,null,null,null,null,null,null,null,null,null,null,null,null,null,null,null,null,null,null,null,null,0,0,0,0,0,0,0,0,0,0,0]
[64,"",null,null,null,null,null,null,null,null,null,null,null,null,null,null,null,null,null,null,null,null,null,null,null,null,null,null,null,null,null,null,null,null,null,null,null,null,null,null,null,null,null,null,null,null,null,null,null,null,null,null,null,null,null,null,null,null,null,null,null,null,null,null,null,null,null,0,0,0,0,0,0,0,0,0,0,0]
[65,"",null,null,null,null,null,null,null,null,null,null,null,null,null,null,null,null,null,null,null,null,null,null,null,null,null,null,null,null,null,null,null,null,null,null,null,null,null,null,null,null,null,null,null,null,null,null,null,null,null,null,null,null,null,null,null,null,null,null,null,null,null,null,null,null,null,{"$f":"SUM(C69:F69)","v":0},{"$f":"SUM(K69:L69)","v":0},{"$f":"SUM(G69:J69)","v":0},0,0,0,0,0,0,0,0]
[66,"",null,null,null,null,null,null,null,null,null,null,null,null,null,null,null,null,null,null,null,null,null,null,null,null,null,null,null,null,null,null,null,null,null,null,null,null,null,null,null,null,null,null,null,null,null,null,null,null,null,null,null,null,null,null,null,null,null,null,null,null,null,null,null,null,null,0,0,0,{"$f":"SUM(M70:Q70)","v":0},{"$f":"SUM(R70:V70)","v":0},{"$f":"SUM(W70:AA70)","v":0},{"$f":"SUM(AB70:AF70)","v":0},{"$f":"SUM(AG70:AK70)","v":0},{"$f":"SUM(AL70:AP70)","v":0},{"$f":"SUM(AQ70:AU70)","v":0},{"$f":"SUM(BJ70:BN70)","v":0}]
[67,"",null,null,null,null,null,null,null,null,null,null,null,null,null,null,null,null,null,null,null,null,null,null,null,null,null,null,null,null,null,null,null,null,null,null,null,null,null,null,null,null,null,null,null,null,null,null,null,null,null,null,null,null,null,null,null,null,null,null,null,null,null,null,null,null,null,0,0,0,0,0,0,0,0,0,0,0]
[68,"",null,null,null,null,null,null,null,null,null,null,null,null,null,null,null,null,null,null,null,null,null,null,null,null,null,null,null,null,null,null,null,null,null,null,null,null,null,null,null,null,null,null,null,null,null,null,null,null,null,null,null,null,null,null,null,null,null,null,null,null,null,null,null,null,null,0,0,0,0,0,0,0,0,0,0,0]
[69,"",null,null,null,null,null,null,null,null,null,null,null,null,null,null,null,null,null,null,null,null,null,null,null,null,null,null,null,null,null,null,null,null,null,null,null,null,null,null,null,null,null,null,null,null,null,null,null,null,null,null,null,null,null,null,null,null,null,null,null,null,null,null,null,null,null,0,0,0,0,0,0,0,0,0,0,0]
[70,"",null,null,null,null,null,null,null,null,null,null,null,null,null,null,null,null,null,null,null,null,null,null,null,null,null,null,null,null,null,null,null,null,null,null,null,null,null,null,null,null,null,null,null,null,null,null,null,null,null,null,null,null,null,null,null,null,null,null,null,null,null,null,null,null,null,0,0,0,0,0,0,0,0,0,0,0]
[71,"",null,null,null,null,null,null,null,null,null,null,null,null,null,null,null,null,null,null,null,null,null,null,null,null,null,null,null,null,null,null,null,null,null,null,null,null,null,null,null,null,null,null,null,null,null,null,null,null,null,null,null,null,null,null,null,null,null,null,null,null,null,null,null,null,null,0,0,0,0,0,0,0,0,0,0,0]
[72,"",null,null,null,null,null,null,null,null,null,null,null,null,null,null,null,null,null,null,null,null,null,null,null,null,null,null,null,null,null,null,null,null,null,null,null,null,null,null,null,null,null,null,null,null,null,null,null,null,null,null,null,null,null,null,null,null,null,null,null,null,null,null,null,null,null,0,0,0,0,0,0,0,0,0,0,0]
[73,"",null,null,null,null,null,null,null,null,null,null,null,null,null,null,null,null,null,null,null,null,null,null,null,null,null,null,null,null,null,null,null,null,null,null,null,null,null,null,null,null,null,null,null,null,null,null,null,null,null,null,null,null,null,null,null,null,null,null,null,null,null,null,null,null,null,0,0,0,0,0,0,0,0,0,0,0]
[74,"",null,null,null,null,null,null,null,null,null,null,null,null,null,null,null,null,null,null,null,null,null,null,null,null,null,null,null,null,null,null,null,null,null,null,null,null,null,null,null,null,null,null,null,null,null,null,null,null,null,null,null,null,null,null,null,null,null,null,null,null,null,null,null,null,null,0,0,0,0,0,0,0,0,0,0,0]
[75,"",null,null,null,null,null,null,null,null,null,null,null,null,null,null,null,null,null,null,null,null,null,null,null,null,null,null,null,null,null,null,null,null,null,null,null,null,null,null,null,null,null,null,null,null,null,null,null,null,null,null,null,null,null,null,null,null,null,null,null,null,null,null,null,null,null,0,0,0,0,0,0,0,0,0,0,0]
[76,"",null,null,null,null,null,null,null,null,null,null,null,null,null,null,null,null,null,null,null,null,null,null,null,null,null,null,null,null,null,null,null,null,null,null,null,null,null,null,null,null,null,null,null,null,null,null,null,null,null,null,null,null,null,null,null,null,null,null,null,null,null,null,null,null,null,0,0,0,0,0,0,0,0,0,0,0]
[77,"",null,null,null,null,null,null,null,null,null,null,null,null,null,null,null,null,null,null,null,null,null,null,null,null,null,null,null,null,null,null,null,null,null,null,null,null,null,null,null,null,null,null,null,null,null,null,null,null,null,null,null,null,null,null,null,null,null,null,null,null,null,null,null,null,null,0,0,0,0,0,0,0,0,0,0,0]
[78,"",null,null,null,null,null,null,null,null,null,null,null,null,null,null,null,null,null,null,null,null,null,null,null,null,null,null,null,null,null,null,null,null,null,null,null,null,null,null,null,null,null,null,null,null,null,null,null,null,null,null,null,null,null,null,null,null,null,null,null,null,null,null,null,null,null,0,0,0,0,0,0,0,0,0,0,0]
[79,"",null,null,null,null,null,null,null,null,null,null,null,null,null,null,null,null,null,null,null,null,null,null,null,null,null,null,null,null,null,null,null,null,null,null,null,null,null,null,null,null,null,null,null,null,null,null,null,null,null,null,null,null,null,null,null,null,null,null,null,null,null,null,null,null,null,0,0,0,0,0,0,0,0,0,0,0]
[80,"",null,null,null,null,null,null,null,null,null,null,null,null,null,null,null,null,null,null,null,null,null,null,null,null,null,null,null,null,null,null,null,null,null,null,null,null,null,null,null,null,null,null,null,null,null,null,null,null,null,null,null,null,null,null,null,null,null,null,null,null,null,null,null,null,null,0,0,0,0,0,0,0,0,0,0,0]
[81,"",null,null,null,null,null,null,null,null,null,null,null,null,null,null,null,null,null,null,null,null,null,null,null,null,null,null,null,null,null,null,null,null,null,null,null,null,null,null,null,null,null,null,null,null,null,null,null,null,null,null,null,null,null,null,null,null,null,null,null,null,null,null,null,null,null,0,0,0,0,0,0,0,0,0,0,0]
[82,"",null,null,null,null,null,null,null,null,null,null,null,null,null,null,null,null,null,null,null,null,null,null,null,null,null,null,null,null,null,null,null,null,null,null,null,null,null,null,null,null,null,null,null,null,null,null,null,null,null,null,null,null,null,null,null,null,null,null,null,null,null,null,null,null,null,0,0,0,0,0,0,0,0,0,0,0]
[83,"",null,null,null,null,null,null,null,null,null,null,null,null,null,null,null,null,null,null,null,null,null,null,null,null,null,null,null,null,null,null,null,null,null,null,null,null,null,null,null,null,null,null,null,null,null,null,null,null,null,null,null,null,null,null,null,null,null,null,null,null,null,null,null,null,null,0,0,0,0,0,0,0,0,0,0,0]
[84,"",null,null,null,null,null,null,null,null,null,null,null,null,null,null,null,null,null,null,null,null,null,null,null,null,null,null,null,null,null,null,null,null,null,null,null,null,null,null,null,null,null,null,null,null,null,null,null,null,null,null,null,null,null,null,null,null,null,null,null,null,null,null,null,null,null,0,0,0,0,0,0,0,0,0,0,0]
[85,"",null,null,null,null,null,null,null,null,null,null,null,null,null,null,null,null,null,null,null,null,null,null,null,null,null,null,null,null,null,null,null,null,null,null,null,null,null,null,null,null,null,null,null,null,null,null,null,null,null,null,null,null,null,null,null,null,null,null,null,null,null,null,null,null,null,0,0,0,0,0,0,0,0,0,0,0]
[86,"",null,null,null,null,null,null,null,null,null,null,null,null,null,null,null,null,null,null,null,null,null,null,null,null,null,null,null,null,null,null,null,null,null,null,null,null,null,null,null,null,null,null,null,null,null,null,null,null,null,null,null,null,null,null,null,null,null,null,null,null,null,null,null,null,null,0,0,0,0,0,0,0,0,0,0,0]
[87,"",null,null,null,null,null,null,null,null,null,null,null,null,null,null,null,null,null,null,null,null,null,null,null,null,null,null,null,null,null,null,null,null,null,null,null,null,null,null,null,null,null,null,null,null,null,null,null,null,null,null,null,null,null,null,null,null,null,null,null,null,null,null,null,null,null,0,0,0,0,0,0,0,0,0,0,0]
[88,"",null,null,null,null,null,null,null,null,null,null,null,null,null,null,null,null,null,null,null,null,null,null,null,null,null,null,null,null,null,null,null,null,null,null,null,null,null,null,null,null,null,null,null,null,null,null,null,null,null,null,null,null,null,null,null,null,null,null,null,null,null,null,null,null,null,0,0,0,0,0,0,0,0,0,0,0]
[89,"",null,null,null,null,null,null,null,null,null,null,null,null,null,null,null,null,null,null,null,null,null,null,null,null,null,null,null,null,null,null,null,null,null,null,null,null,null,null,null,null,null,null,null,null,null,null,null,null,null,null,null,null,null,null,null,null,null,null,null,null,null,null,null,null,null,0,0,0,0,0,0,0,0,0,0,0]
[90,"",null,null,null,null,null,null,null,null,null,null,null,null,null,null,null,null,null,null,null,null,null,null,null,null,null,null,null,null,null,null,null,null,null,null,null,null,null,null,null,null,null,null,null,null,null,null,null,null,null,null,null,null,null,null,null,null,null,null,null,null,null,null,null,null,null,0,0,0,0,0,0,0,0,0,0,0]
[91,"",null,null,null,null,null,null,null,null,null,null,null,null,null,null,null,null,null,null,null,null,null,null,null,null,null,null,null,null,null,null,null,null,null,null,null,null,null,null,null,null,null,null,null,null,null,null,null,null,null,null,null,null,null,null,null,null,null,null,null,null,null,null,null,null,null,0,0,0,0,0,0,0,0,0,0,0]
[92,"",null,null,null,null,null,null,null,null,null,null,null,null,null,null,null,null,null,null,null,null,null,null,null,null,null,null,null,null,null,null,null,null,null,null,null,null,null,null,null,null,null,null,null,null,null,null,null,null,null,null,null,null,null,null,null,null,null,null,null,null,null,null,null,null,null,0,0,0,0,0,0,0,0,0,0,0]
[93,"",null,null,null,null,null,null,null,null,null,null,null,null,null,null,null,null,null,null,null,null,null,null,null,null,null,null,null,null,null,null,null,null,null,null,null,null,null,null,null,null,null,null,null,null,null,null,null,null,null,null,null,null,null,null,null,null,null,null,null,null,null,null,null,null,null,0,0,0,0,0,0,0,0,0,0,0]
[94,"",null,null,null,null,null,null,null,null,null,null,null,null,null,null,null,null,null,null,null,null,null,null,null,null,null,null,null,null,null,null,null,null,null,null,null,null,null,null,null,null,null,null,null,null,null,null,null,null,null,null,null,null,null,null,null,null,null,null,null,null,null,null,null,null,null,0,0,0,0,0,0,0,0,0,0,0]
[95,"",null,null,null,null,null,null,null,null,null,null,null,null,null,null,null,null,null,null,null,null,null,null,null,null,null,null,null,null,null,null,null,null,null,null,null,null,null,null,null,null,null,null,null,null,null,null,null,null,null,null,null,null,null,null,null,null,null,null,null,null,null,null,null,null,null,0,0,0,0,0,0,0,0,0,0,0]
[96,"",null,null,null,null,null,null,null,null,null,null,null,null,null,null,null,null,null,null,null,null,null,null,null,null,null,null,null,null,null,null,null,null,null,null,null,null,null,null,null,null,null,null,null,null,null,null,null,null,null,null,null,null,null,null,null,null,null,null,null,null,null,null,null,null,null,0,0,0,0,0,0,0,0,0,0,0]
[97,"",null,null,null,null,null,null,null,null,null,null,null,null,null,null,null,null,null,null,null,null,null,null,null,null,null,null,null,null,null,null,null,null,null,null,null,null,null,null,null,null,null,null,null,null,null,null,null,null,null,null,null,null,null,null,null,null,null,null,null,null,null,null,null,null,null,0,0,0,0,0,0,0,0,0,0,0]
[98,"",null,null,null,null,null,null,null,null,null,null,null,null,null,null,null,null,null,null,null,null,null,null,null,null,null,null,null,null,null,null,null,null,null,null,null,null,null,null,null,null,null,null,null,null,null,null,null,null,null,null,null,null,null,null,null,null,null,null,null,null,null,null,null,null,null,0,0,0,0,0,0,0,0,0,0,0]
[99,"",null,null,null,null,null,null,null,null,null,null,null,null,null,null,null,null,null,null,null,null,null,null,null,null,null,null,null,null,null,null,null,null,null,null,null,null,null,null,null,null,null,null,null,null,null,null,null,null,null,null,null,null,null,null,null,null,null,null,null,null,null,null,null,null,null,0,0,0,0,0,0,0,0,0,0,0]
[100,"",null,null,null,null,null,null,null,null,null,null,null,null,null,null,null,null,null,null,null,null,null,null,null,null,null,null,null,null,null,null,null,null,null,null,null,null,null,null,null,null,null,null,null,null,null,null,null,null,null,null,null,null,null,null,null,null,null,null,null,null,null,null,null,null,null,0,0,0,0,0,0,0,0,0,0,0]
[101,"",null,null,null,null,null,null,null,null,null,null,null,null,null,null,null,null,null,null,null,null,null,null,null,null,null,null,null,null,null,null,null,null,null,null,null,null,null,null,null,null,null,null,null,null,null,null,null,null,null,null,null,null,null,null,null,null,null,null,null,null,null,null,null,null,null,0,0,0,0,0,0,0,0,0,0,0]
[102,"",null,null,null,null,null,null,null,null,null,null,null,null,null,null,null,null,null,null,null,null,null,null,null,null,null,null,null,null,null,null,null,null,null,null,null,null,null,null,null,null,null,null,null,null,null,null,null,null,null,null,null,null,null,null,null,null,null,null,null,null,null,null,null,null,null,0,0,0,0,0,0,0,0,0,0,0]
[103,"",null,null,null,null,null,null,null,null,null,null,null,null,null,null,null,null,null,null,null,null,null,null,null,null,null,null,null,null,null,null,null,null,null,null,null,null,null,null,null,null,null,null,null,null,null,null,null,null,null,null,null,null,null,null,null,null,null,null,null,null,null,null,null,null,null,0,0,0,0,0,0,0,0,0,0,0]
[104,"",null,null,null,null,null,null,null,null,null,null,null,null,null,null,null,null,null,null,null,null,null,null,null,null,null,null,null,null,null,null,null,null,null,null,null,null,null,null,null,null,null,null,null,null,null,null,null,null,null,null,null,null,null,null,null,null,null,null,null,null,null,null,null,null,null,0,0,0,0,0,0,0,0,0,0,0]
[105,"",null,null,null,null,null,null,null,null,null,null,null,null,null,null,null,null,null,null,null,null,null,null,null,null,null,null,null,null,null,null,null,null,null,null,null,null,null,null,null,null,null,null,null,null,null,null,null,null,null,null,null,null,null,null,null,null,null,null,null,null,null,null,null,null,null,0,0,0,0,0,0,0,0,0,0,0]
[106,"",null,null,null,null,null,null,null,null,null,null,null,null,null,null,null,null,null,null,null,null,null,null,null,null,null,null,null,null,null,null,null,null,null,null,null,null,null,null,null,null,null,null,null,null,null,null,null,null,null,null,null,null,null,null,null,null,null,null,null,null,null,null,null,null,null,0,0,0,0,0,0,0,0,0,0,0]
[107,"",null,null,null,null,null,null,null,null,null,null,null,null,null,null,null,null,null,null,null,null,null,null,null,null,null,null,null,null,null,null,null,null,null,null,null,null,null,null,null,null,null,null,null,null,null,null,null,null,null,null,null,null,null,null,null,null,null,null,null,null,null,null,null,null,null,0,0,0,0,0,0,0,0,0,0,0]
[108,"",null,null,null,null,null,null,null,null,null,null,null,null,null,null,null,null,null,null,null,null,null,null,null,null,null,null,null,null,null,null,null,null,null,null,null,null,null,null,null,null,null,null,null,null,null,null,null,null,null,null,null,null,null,null,null,null,null,null,null,null,null,null,null,null,null,0,0,0,0,0,0,0,0,0,0,0]
[109,"",null,null,null,null,null,null,null,null,null,null,null,null,null,null,null,null,null,null,null,null,null,null,null,null,null,null,null,null,null,null,null,null,null,null,null,null,null,null,null,null,null,null,null,null,null,null,null,null,null,null,null,null,null,null,null,null,null,null,null,null,null,null,null,null,null,0,0,0,0,0,0,0,0,0,0,0]
[110,"",null,null,null,null,null,null,null,null,null,null,null,null,null,null,null,null,null,null,null,null,null,null,null,null,null,null,null,null,null,null,null,null,null,null,null,null,null,null,null,null,null,null,null,null,null,null,null,null,null,null,null,null,null,null,null,null,null,null,null,null,null,null,null,null,null,0,0,0,0,0,0,0,0,0,0,0]
[111,"",null,null,null,null,null,null,null,null,null,null,null,null,null,null,null,null,null,null,null,null,null,null,null,null,null,null,null,null,null,null,null,null,null,null,null,null,null,null,null,null,null,null,null,null,null,null,null,null,null,null,null,null,null,null,null,null,null,null,null,null,null,null,null,null,null,0,0,0,0,0,0,0,0,0,0,0]
[112,"",null,null,null,null,null,null,null,null,null,null,null,null,null,null,null,null,null,null,null,null,null,null,null,null,null,null,null,null,null,null,null,null,null,null,null,null,null,null,null,null,null,null,null,null,null,null,null,null,null,null,null,null,null,null,null,null,null,null,null,null,null,null,null,null,null,0,0,0,0,0,0,0,0,0,0,0]
[113,"",null,null,null,null,null,null,null,null,null,null,null,null,null,null,null,null,null,null,null,null,null,null,null,null,null,null,null,null,null,null,null,null,null,null,null,null,null,null,null,null,null,null,null,null,null,null,null,null,null,null,null,null,null,null,null,null,null,null,null,null,null,null,null,null,null,0,0,0,0,0,0,0,0,0,0,0]
[114,"",null,null,null,null,null,null,null,null,null,null,null,null,null,null,null,null,null,null,null,null,null,null,null,null,null,null,null,null,null,null,null,null,null,null,null,null,null,null,null,null,null,null,null,null,null,null,null,null,null,null,null,null,null,null,null,null,null,null,null,null,null,null,null,null,null,0,0,0,0,0,0,0,0,0,0,0]
[115,"",null,null,null,null,null,null,null,null,null,null,null,null,null,null,null,null,null,null,null,null,null,null,null,null,null,null,null,null,null,null,null,null,null,null,null,null,null,null,null,null,null,null,null,null,null,null,null,null,null,null,null,null,null,null,null,null,null,null,null,null,null,null,null,null,null,0,0,0,0,0,0,0,0,0,0,0]
[116,"",null,null,null,null,null,null,null,null,null,null,null,null,null,null,null,null,null,null,null,null,null,null,null,null,null,null,null,null,null,null,null,null,null,null,null,null,null,null,null,null,null,null,null,null,null,null,null,null,null,null,null,null,null,null,null,null,null,null,null,null,null,null,null,null,null,0,0,0,0,0,0,0,0,0,0,0]
[117,"",null,null,null,null,null,null,null,null,null,null,null,null,null,null,null,null,null,null,null,null,null,null,null,null,null,null,null,null,null,null,null,null,null,null,null,null,null,null,null,null,null,null,null,null,null,null,null,null,null,null,null,null,null,null,null,null,null,null,null,null,null,null,null,null,null,0,0,0,0,0,0,0,0,0,0,0]
[118,"",null,null,null,null,null,null,null,null,null,null,null,null,null,null,null,null,null,null,null,null,null,null,null,null,null,null,null,null,null,null,null,null,null,null,null,null,null,null,null,null,null,null,null,null,null,null,null,null,null,null,null,null,null,null,null,null,null,null,null,null,null,null,null,null,null,0,0,0,0,0,0,0,0,0,0,0]
[119,"",null,null,null,null,null,null,null,null,null,null,null,null,null,null,null,null,null,null,null,null,null,null,null,null,null,null,null,null,null,null,null,null,null,null,null,null,null,null,null,null,null,null,null,null,null,null,null,null,null,null,null,null,null,null,null,null,null,null,null,null,null,null,null,null,null,0,0,0,0,0,0,0,0,0,0,0]
[120,"",null,null,null,null,null,null,null,null,null,null,null,null,null,null,null,null,null,null,null,null,null,null,null,null,null,null,null,null,null,null,null,null,null,null,null,null,null,null,null,null,null,null,null,null,null,null,null,null,null,null,null,null,null,null,null,null,null,null,null,null,null,null,null,null,null,0,0,0,0,0,0,0,0,0,0,0]
[121,"",null,null,null,null,null,null,null,null,null,null,null,null,null,null,null,null,null,null,null,null,null,null,null,null,null,null,null,null,null,null,null,null,null,null,null,null,null,null,null,null,null,null,null,null,null,null,null,null,null,null,null,null,null,null,null,null,null,null,null,null,null,null,null,null,null,0,0,0,0,0,0,0,0,0,0,0]
[122,"",null,null,null,null,null,null,null,null,null,null,null,null,null,null,null,null,null,null,null,null,null,null,null,null,null,null,null,null,null,null,null,null,null,null,null,null,null,null,null,null,null,null,null,null,null,null,null,null,null,null,null,null,null,null,null,null,null,null,null,null,null,null,null,null,null,0,0,0,0,0,0,0,0,0,0,0]
[123,"",null,null,null,null,null,null,null,null,null,null,null,null,null,null,null,null,null,null,null,null,null,null,null,null,null,null,null,null,null,null,null,null,null,null,null,null,null,null,null,null,null,null,null,null,null,null,null,null,null,null,null,null,null,null,null,null,null,null,null,null,null,null,null,null,null,0,0,0,0,0,0,0,0,0,0,0]
[124,"",null,null,null,null,null,null,null,null,null,null,null,null,null,null,null,null,null,null,null,null,null,null,null,null,null,null,null,null,null,null,null,null,null,null,null,null,null,null,null,null,null,null,null,null,null,null,null,null,null,null,null,null,null,null,null,null,null,null,null,null,null,null,null,null,null,0,0,0,0,0,0,0,0,0,0,0]
[125,"",null,null,null,null,null,null,null,null,null,null,null,null,null,null,null,null,null,null,null,null,null,null,null,null,null,null,null,null,null,null,null,null,null,null,null,null,null,null,null,null,null,null,null,null,null,null,null,null,null,null,null,null,null,null,null,null,null,null,null,null,null,null,null,null,null,0,0,0,0,0,0,0,0,0,0,0]
[126,"",null,null,null,null,null,null,null,null,null,null,null,null,null,null,null,null,null,null,null,null,null,null,null,null,null,null,null,null,null,null,null,null,null,null,null,null,null,null,null,null,null,null,null,null,null,null,null,null,null,null,null,null,null,null,null,null,null,null,null,null,null,null,null,null,null,0,0,0,0,0,0,0,0,0,0,0]
[127,"",null,null,null,null,null,null,null,null,null,null,null,null,null,null,null,null,null,null,null,null,null,null,null,null,null,null,null,null,null,null,null,null,null,null,null,null,null,null,null,null,null,null,null,null,null,null,null,null,null,null,null,null,null,null,null,null,null,null,null,null,null,null,null,null,null,0,0,0,0,0,0,0,0,0,0,0]
[128,"",null,null,null,null,null,null,null,null,null,null,null,null,null,null,null,null,null,null,null,null,null,null,null,null,null,null,null,null,null,null,null,null,null,null,null,null,null,null,null,null,null,null,null,null,null,null,null,null,null,null,null,null,null,null,null,null,null,null,null,null,null,null,null,null,null,0,0,0,0,0,0,0,0,0,0,0]
[129,"",null,null,null,null,null,null,null,null,null,null,null,null,null,null,null,null,null,null,null,null,null,null,null,null,null,null,null,null,null,null,null,null,null,null,null,null,null,null,null,null,null,null,null,null,null,null,null,null,null,null,null,null,null,null,null,null,null,null,null,null,null,null,null,null,null,{"$f":"SUM(C133:F133)","v":0},{"$f":"SUM(K133:L133)","v":0},{"$f":"SUM(G133:J133)","v":0},0,0,0,0,0,0,0,0]
[130,"",null,null,null,null,null,null,null,null,null,null,null,null,null,null,null,null,null,null,null,null,null,null,null,null,null,null,null,null,null,null,null,null,null,null,null,null,null,null,null,null,null,null,null,null,null,null,null,null,null,null,null,null,null,null,null,null,null,null,null,null,null,null,null,null,null,0,0,0,{"$f":"SUM(M134:Q134)","v":0},{"$f":"SUM(R134:V134)","v":0},{"$f":"SUM(W134:AA134)","v":0},{"$f":"SUM(AB134:AF134)","v":0},{"$f":"SUM(AG134:AK134)","v":0},{"$f":"SUM(AL134:AP134)","v":0},{"$f":"SUM(AQ134:AU134)","v":0},{"$f":"SUM(BJ134:BN134)","v":0}]
[131,"",null,null,null,null,null,null,null,null,null,null,null,null,null,null,null,null,null,null,null,null,null,null,null,null,null,null,null,null,null,null,null,null,null,null,null,null,null,null,null,null,null,null,null,null,null,null,null,null,null,null,null,null,null,null,null,null,null,null,null,null,null,null,null,null,null,0,0,0,0,0,0,0,0,0,0,0]
[132,"",null,null,null,null,null,null,null,null,null,null,null,null,null,null,null,null,null,null,null,null,null,null,null,null,null,null,null,null,null,null,null,null,null,null,null,null,null,null,null,null,null,null,null,null,null,null,null,null,null,null,null,null,null,null,null,null,null,null,null,null,null,null,null,null,null,0,0,0,0,0,0,0,0,0,0,0]
[133,"",null,null,null,null,null,null,null,null,null,null,null,null,null,null,null,null,null,null,null,null,null,null,null,null,null,null,null,null,null,null,null,null,null,null,null,null,null,null,null,null,null,null,null,null,null,null,null,null,null,null,null,null,null,null,null,null,null,null,null,null,null,null,null,null,null,0,0,0,0,0,0,0,0,0,0,0]
[134,"",null,null,null,null,null,null,null,null,null,null,null,null,null,null,null,null,null,null,null,null,null,null,null,null,null,null,null,null,null,null,null,null,null,null,null,null,null,null,null,null,null,null,null,null,null,null,null,null,null,null,null,null,null,null,null,null,null,null,null,null,null,null,null,null,null,0,0,0,0,0,0,0,0,0,0,0]
[135,"",null,null,null,null,null,null,null,null,null,null,null,null,null,null,null,null,null,null,null,null,null,null,null,null,null,null,null,null,null,null,null,null,null,null,null,null,null,null,null,null,null,null,null,null,null,null,null,null,null,null,null,null,null,null,null,null,null,null,null,null,null,null,null,null,null,0,0,0,0,0,0,0,0,0,0,0]
[136,"",null,null,null,null,null,null,null,null,null,null,null,null,null,null,null,null,null,null,null,null,null,null,null,null,null,null,null,null,null,null,null,null,null,null,null,null,null,null,null,null,null,null,null,null,null,null,null,null,null,null,null,null,null,null,null,null,null,null,null,null,null,null,null,null,null,0,0,0,0,0,0,0,0,0,0,0]
[137,"",null,null,null,null,null,null,null,null,null,null,null,null,null,null,null,null,null,null,null,null,null,null,null,null,null,null,null,null,null,null,null,null,null,null,null,null,null,null,null,null,null,null,null,null,null,null,null,null,null,null,null,null,null,null,null,null,null,null,null,null,null,null,null,null,null,0,0,0,0,0,0,0,0,0,0,0]
[138,"",null,null,null,null,null,null,null,null,null,null,null,null,null,null,null,null,null,null,null,null,null,null,null,null,null,null,null,null,null,null,null,null,null,null,null,null,null,null,null,null,null,null,null,null,null,null,null,null,null,null,null,null,null,null,null,null,null,null,null,null,null,null,null,null,null,0,0,0,0,0,0,0,0,0,0,0]
[139,"",null,null,null,null,null,null,null,null,null,null,null,null,null,null,null,null,null,null,null,null,null,null,null,null,null,null,null,null,null,null,null,null,null,null,null,null,null,null,null,null,null,null,null,null,null,null,null,null,null,null,null,null,null,null,null,null,null,null,null,null,null,null,null,null,null,0,0,0,0,0,0,0,0,0,0,0]
[140,"",null,null,null,null,null,null,null,null,null,null,null,null,null,null,null,null,null,null,null,null,null,null,null,null,null,null,null,null,null,null,null,null,null,null,null,null,null,null,null,null,null,null,null,null,null,null,null,null,null,null,null,null,null,null,null,null,null,null,null,null,null,null,null,null,null,0,0,0,0,0,0,0,0,0,0,0]
[141,"",null,null,null,null,null,null,null,null,null,null,null,null,null,null,null,null,null,null,null,null,null,null,null,null,null,null,null,null,null,null,null,null,null,null,null,null,null,null,null,null,null,null,null,null,null,null,null,null,null,null,null,null,null,null,null,null,null,null,null,null,null,null,null,null,null,0,0,0,0,0,0,0,0,0,0,0]
[142,"",null,null,null,null,null,null,null,null,null,null,null,null,null,null,null,null,null,null,null,null,null,null,null,null,null,null,null,null,null,null,null,null,null,null,null,null,null,null,null,null,null,null,null,null,null,null,null,null,null,null,null,null,null,null,null,null,null,null,null,null,null,null,null,null,null,0,0,0,0,0,0,0,0,0,0,0]
[143,"",null,null,null,null,null,null,null,null,null,null,null,null,null,null,null,null,null,null,null,null,null,null,null,null,null,null,null,null,null,null,null,null,null,null,null,null,null,null,null,null,null,null,null,null,null,null,null,null,null,null,null,null,null,null,null,null,null,null,null,null,null,null,null,null,null,0,0,0,0,0,0,0,0,0,0,0]
[144,"",null,null,null,null,null,null,null,null,null,null,null,null,null,null,null,null,null,null,null,null,null,null,null,null,null,null,null,null,null,null,null,null,null,null,null,null,null,null,null,null,null,null,null,null,null,null,null,null,null,null,null,null,null,null,null,null,null,null,null,null,null,null,null,null,null,0,0,0,0,0,0,0,0,0,0,0]
[145,"",null,null,null,null,null,null,null,null,null,null,null,null,null,null,null,null,null,null,null,null,null,null,null,null,null,null,null,null,null,null,null,null,null,null,null,null,null,null,null,null,null,null,null,null,null,null,null,null,null,null,null,null,null,null,null,null,null,null,null,null,null,null,null,null,null,0,0,0,0,0,0,0,0,0,0,0]
[146,"",null,null,null,null,null,null,null,null,null,null,null,null,null,null,null,null,null,null,null,null,null,null,null,null,null,null,null,null,null,null,null,null,null,null,null,null,null,null,null,null,null,null,null,null,null,null,null,null,null,null,null,null,null,null,null,null,null,null,null,null,null,null,null,null,null,0,0,0,0,0,0,0,0,0,0,0]
[147,"",null,null,null,null,null,null,null,null,null,null,null,null,null,null,null,null,null,null,null,null,null,null,null,null,null,null,null,null,null,null,null,null,null,null,null,null,null,null,null,null,null,null,null,null,null,null,null,null,null,null,null,null,null,null,null,null,null,null,null,null,null,null,null,null,null,0,0,0,0,0,0,0,0,0,0,0]
[148,"",null,null,null,null,null,null,null,null,null,null,null,null,null,null,null,null,null,null,null,null,null,null,null,null,null,null,null,null,null,null,null,null,null,null,null,null,null,null,null,null,null,null,null,null,null,null,null,null,null,null,null,null,null,null,null,null,null,null,null,null,null,null,null,null,null,0,0,0,0,0,0,0,0,0,0,0]
[149,"",null,null,null,null,null,null,null,null,null,null,null,null,null,null,null,null,null,null,null,null,null,null,null,null,null,null,null,null,null,null,null,null,null,null,null,null,null,null,null,null,null,null,null,null,null,null,null,null,null,null,null,null,null,null,null,null,null,null,null,null,null,null,null,null,null,0,0,0,0,0,0,0,0,0,0,0]
[150,"",null,null,null,null,null,null,null,null,null,null,null,null,null,null,null,null,null,null,null,null,null,null,null,null,null,null,null,null,null,null,null,null,null,null,null,null,null,null,null,null,null,null,null,null,null,null,null,null,null,null,null,null,null,null,null,null,null,null,null,null,null,null,null,null,null,0,0,0,0,0,0,0,0,0,0,0]
[151,"",null,null,null,null,null,null,null,null,null,null,null,null,null,null,null,null,null,null,null,null,null,null,null,null,null,null,null,null,null,null,null,null,null,null,null,null,null,null,null,null,null,null,null,null,null,null,null,null,null,null,null,null,null,null,null,null,null,null,null,null,null,null,null,null,null,0,0,0,0,0,0,0,0,0,0,0]
[152,{"$f":"IF(C156=1,\"小学生\",IF(D156=1,\"中学生\",IF(E156=1,\"高校生\",IF(F156=1,\"保護者等\",\"\"))))","v":""},null,null,null,null,null,null,null,null,null,null,null,null,null,null,null,null,null,null,null,null,null,null,null,null,null,null,null,null,null,null,null,null,null,null,null,null,null,null,null,null,null,null,null,null,null,null,null,null,null,null,null,null,null,null,null,null,null,null,null,null,null,null,null,null,null,0,0,0,0,0,0,0,0,0,0,0]
[153,"",null,null,null,null,null,null,null,null,null,null,null,null,null,null,null,null,null,null,null,null,null,null,null,null,null,null,null,null,null,null,null,null,null,null,null,null,null,null,null,null,null,null,null,null,null,null,null,null,null,null,null,null,null,null,null,null,null,null,null,null,null,null,null,null,null,0,0,0,0,0,0,0,0,0,0,0]
[154,"",null,null,null,null,null,null,null,null,null,null,null,null,null,null,null,null,null,null,null,null,null,null,null,null,null,null,null,null,null,null,null,null,null,null,null,null,null,null,null,null,null,null,null,null,null,null,null,null,null,null,null,null,null,null,null,null,null,null,null,null,null,null,null,null,null,0,0,0,0,0,0,0,0,0,0,0]
[155,"",null,null,null,null,null,null,null,null,null,null,null,null,null,null,null,null,null,null,null,null,null,null,null,null,null,null,null,null,null,null,null,null,null,null,null,null,null,null,null,null,null,null,null,null,null,null,null,null,null,null,null,null,null,null,null,null,null,null,null,null,null,null,null,null,null,0,0,0,0,0,0,0,0,0,0,0]
[156,"",null,null,null,null,null,null,null,null,null,null,null,null,null,null,null,null,null,null,null,null,null,null,null,null,null,null,null,null,null,null,null,null,null,null,null,null,null,null,null,null,null,null,null,null,null,null,null,null,null,null,null,null,null,null,null,null,null,null,null,null,null,null,null,null,null,0,0,0,0,0,0,0,0,0,0,0]
[157,"",null,null,null,null,null,null,null,null,null,null,null,null,null,null,null,null,null,null,null,null,null,null,null,null,null,null,null,null,null,null,null,null,null,null,null,null,null,null,null,null,null,null,null,null,null,null,null,null,null,null,null,null,null,null,null,null,null,null,null,null,null,null,null,null,null,0,0,0,0,0,0,0,0,0,0,0]
[158,"",null,null,null,null,null,null,null,null,null,null,null,null,null,null,null,null,null,null,null,null,null,null,null,null,null,null,null,null,null,null,null,null,null,null,null,null,null,null,null,null,null,null,null,null,null,null,null,null,null,null,null,null,null,null,null,null,null,null,null,null,null,null,null,null,null,0,0,0,0,0,0,0,0,0,0,0]
[159,"",null,null,null,null,null,null,null,null,null,null,null,null,null,null,null,null,null,null,null,null,null,null,null,null,null,null,null,null,null,null,null,null,null,null,null,null,null,null,null,null,null,null,null,null,null,null,null,null,null,null,null,null,null,null,null,null,null,null,null,null,null,null,null,null,null,0,0,0,0,0,0,0,0,0,0,0]
[160,"",null,null,null,null,null,null,null,null,null,null,null,null,null,null,null,null,null,null,null,null,null,null,null,null,null,null,null,null,null,null,null,null,null,null,null,null,null,null,null,null,null,null,null,null,null,null,null,null,null,null,null,null,null,null,null,null,null,null,null,null,null,null,null,null,null,0,0,0,0,0,0,0,0,0,0,0]
[161,"",null,null,null,null,null,null,null,null,null,null,null,null,null,null,null,null,null,null,null,null,null,null,null,null,null,null,null,null,null,null,null,null,null,null,null,null,null,null,null,null,null,null,null,null,null,null,null,null,null,null,null,null,null,null,null,null,null,null,null,null,null,null,null,null,null,0,0,0,0,0,0,0,0,0,0,0]
[162,"",null,null,null,null,null,null,null,null,null,null,null,null,null,null,null,null,null,null,null,null,null,null,null,null,null,null,null,null,null,null,null,null,null,null,null,null,null,null,null,null,null,null,null,null,null,null,null,null,null,null,null,null,null,null,null,null,null,null,null,null,null,null,null,null,null,0,0,0,0,0,0,0,0,0,0,0]
[163,"",null,null,null,null,null,null,null,null,null,null,null,null,null,null,null,null,null,null,null,null,null,null,null,null,null,null,null,null,null,null,null,null,null,null,null,null,null,null,null,null,null,null,null,null,null,null,null,null,null,null,null,null,null,null,null,null,null,null,null,null,null,null,null,null,null,0,0,0,0,0,0,0,0,0,0,0]
[164,"",null,null,null,null,null,null,null,null,null,null,null,null,null,null,null,null,null,null,null,null,null,null,null,null,null,null,null,null,null,null,null,null,null,null,null,null,null,null,null,null,null,null,null,null,null,null,null,null,null,null,null,null,null,null,null,null,null,null,null,null,null,null,null,null,null,0,0,0,0,0,0,0,0,0,0,0]
[165,"",null,null,null,null,null,null,null,null,null,null,null,null,null,null,null,null,null,null,null,null,null,null,null,null,null,null,null,null,null,null,null,null,null,null,null,null,null,null,null,null,null,null,null,null,null,null,null,null,null,null,null,null,null,null,null,null,null,null,null,null,null,null,null,null,null,0,0,0,0,0,0,0,0,0,0,0]
[166,"",null,null,null,null,null,null,null,null,null,null,null,null,null,null,null,null,null,null,null,null,null,null,null,null,null,null,null,null,null,null,null,null,null,null,null,null,null,null,null,null,null,null,null,null,null,null,null,null,null,null,null,null,null,null,null,null,null,null,null,null,null,null,null,null,null,0,0,0,0,0,0,0,0,0,0,0]
[167,"",null,null,null,null,null,null,null,null,null,null,null,null,null,null,null,null,null,null,null,null,null,null,null,null,null,null,null,null,null,null,null,null,null,null,null,null,null,null,null,null,null,null,null,null,null,null,null,null,null,null,null,null,null,null,null,null,null,null,null,null,null,null,null,null,null,0,0,0,0,0,0,0,0,0,0,0]
[168,null,null,null,null,null,null,null,null,null,null,null,null,null,null,null,null,null,null,null,null,null,null,null,null,null,null,null,null,null,null,null,null,null,null,null,null,null,null,null,null,null,null,null,null,null,null,null,null,null,null,null,null,null,null,null,null,null,null,null,null,null,null,null,null,null,null,0,0,0,0,0,0,0,0,0,0,0]
[169,null,null,null,null,null,null,null,null,null,null,null,null,null,null,null,null,null,null,null,null,null,null,null,null,null,null,null,null,null,null,null,null,null,null,null,null,null,null,null,null,null,null,null,null,null,null,null,null,null,null,null,null,null,null,null,null,null,null,null,null,null,null,null,null,null,null,0,0,0,0,0,0,0,0,0,0,0]
[170,null,null,null,null,null,null,null,null,null,null,null,null,null,null,null,null,null,null,null,null,null,null,null,null,null,null,null,null,null,null,null,null,null,null,null,null,null,null,null,null,null,null,null,null,null,null,null,null,null,null,null,null,null,null,null,null,null,null,null,null,null,null,null,null,null,null,0,0,0,0,0,0,0,0,0,0,0]
[171,null,null,null,null,null,null,null,null,null,null,null,null,null,null,null,null,null,null,null,null,null,null,null,null,null,null,null,null,null,null,null,null,null,null,null,null,null,null,null,null,null,null,null,null,null,null,null,null,null,null,null,null,null,null,null,null,null,null,null,null,null,null,null,null,null,null,0,0,0,0,0,0,0,0,0,0,0]
[172,null,null,null,null,null,null,null,null,null,null,null,null,null,null,null,null,null,null,null,null,null,null,null,null,null,null,null,null,null,null,null,null,null,null,null,null,null,null,null,null,null,null,null,null,null,null,null,null,null,null,null,null,null,null,null,null,null,null,null,null,null,null,null,null,null,null,0,0,0,0,0,0,0,0,0,0,0]
[173,null,null,null,null,null,null,null,null,null,null,null,null,null,null,null,null,null,null,null,null,null,null,null,null,null,null,null,null,null,null,null,null,null,null,null,null,null,null,null,null,null,null,null,null,null,null,null,null,null,null,null,null,null,null,null,null,null,null,null,null,null,null,null,null,null,null,0,0,0,0,0,0,0,0,0,0,0]
[174,null,null,null,null,null,null,null,null,null,null,null,null,null,null,null,null,null,null,null,null,null,null,null,null,null,null,null,null,null,null,null,null,null,null,null,null,null,null,null,null,null,null,null,null,null,null,null,null,null,null,null,null,null,null,null,null,null,null,null,null,null,null,null,null,null,null,0,0,0,0,0,0,0,0,0,0,0]
[175,null,null,null,null,null,null,null,null,null,null,null,null,null,null,null,null,null,null,null,null,null,null,null,null,null,null,null,null,null,null,null,null,null,null,null,null,null,null,null,null,null,null,null,null,null,null,null,null,null,null,null,null,null,null,null,null,null,null,null,null,null,null,null,null,null,null,0,0,0,0,0,0,0,0,0,0,0]
[176,null,null,null,null,null,null,null,null,null,null,null,null,null,null,null,null,null,null,null,null,null,null,null,null,null,null,null,null,null,null,null,null,null,null,null,null,null,null,null,null,null,null,null,null,null,null,null,null,null,null,null,null,null,null,null,null,null,null,null,null,null,null,null,null,null,null,0,0,0,0,0,0,0,0,0,0,0]
[177,null,null,null,null,null,null,null,null,null,null,null,null,null,null,null,null,null,null,null,null,null,null,null,null,null,null,null,null,null,null,null,null,null,null,null,null,null,null,null,null,null,null,null,null,null,null,null,null,null,null,null,null,null,null,null,null,null,null,null,null,null,null,null,null,null,null,0,0,0,0,0,0,0,0,0,0,0]
[178,null,null,null,null,null,null,null,null,null,null,null,null,null,null,null,null,null,null,null,null,null,null,null,null,null,null,null,null,null,null,null,null,null,null,null,null,null,null,null,null,null,null,null,null,null,null,null,null,null,null,null,null,null,null,null,null,null,null,null,null,null,null,null,null,null,null,0,0,0,0,0,0,0,0,0,0,0]
[179,null,null,null,null,null,null,null,null,null,null,null,null,null,null,null,null,null,null,null,null,null,null,null,null,null,null,null,null,null,null,null,null,null,null,null,null,null,null,null,null,null,null,null,null,null,null,null,null,null,null,null,null,null,null,null,null,null,null,null,null,null,null,null,null,null,null,0,0,0,0,0,0,0,0,0,0,0]
[180,null,null,null,null,null,null,null,null,null,null,null,null,null,null,null,null,null,null,null,null,null,null,null,null,null,null,null,null,null,null,null,null,null,null,null,null,null,null,null,null,null,null,null,null,null,null,null,null,null,null,null,null,null,null,null,null,null,null,null,null,null,null,null,null,null,null,0,0,0,0,0,0,0,0,0,0,0]
[181,null,null,null,null,null,null,null,null,null,null,null,null,null,null,null,null,null,null,null,null,null,null,null,null,null,null,null,null,null,null,null,null,null,null,null,null,null,null,null,null,null,null,null,null,null,null,null,null,null,null,null,null,null,null,null,null,null,null,null,null,null,null,null,null,null,null,0,0,0,0,0,0,0,0,0,0,0]
[182,null,null,null,null,null,null,null,null,null,null,null,null,null,null,null,null,null,null,null,null,null,null,null,null,null,null,null,null,null,null,null,null,null,null,null,null,null,null,null,null,null,null,null,null,null,null,null,null,null,null,null,null,null,null,null,null,null,null,null,null,null,null,null,null,null,null,0,0,0,0,0,0,0,0,0,0,0]
[183,null,null,null,null,null,null,null,null,null,null,null,null,null,null,null,null,null,null,null,null,null,null,null,null,null,null,null,null,null,null,null,null,null,null,null,null,null,null,null,null,null,null,null,null,null,null,null,null,null,null,null,null,null,null,null,null,null,null,null,null,null,null,null,null,null,null,0,0,0,0,0,0,0,0,0,0,0]
[184,null,null,null,null,null,null,null,null,null,null,null,null,null,null,null,null,null,null,null,null,null,null,null,null,null,null,null,null,null,null,null,null,null,null,null,null,null,null,null,null,null,null,null,null,null,null,null,null,null,null,null,null,null,null,null,null,null,null,null,null,null,null,null,null,null,null,0,0,0,0,0,0,0,0,0,0,0]
[185,null,null,null,null,null,null,null,null,null,null,null,null,null,null,null,null,null,null,null,null,null,null,null,null,null,null,null,null,null,null,null,null,null,null,null,null,null,null,null,null,null,null,null,null,null,null,null,null,null,null,null,null,null,null,null,null,null,null,null,null,null,null,null,null,null,null,0,0,0,0,0,0,0,0,0,0,0]
[186,null,null,null,null,null,null,null,null,null,null,null,null,null,null,null,null,null,null,null,null,null,null,null,null,null,null,null,null,null,null,null,null,null,null,null,null,null,null,null,null,null,null,null,null,null,null,null,null,null,null,null,null,null,null,null,null,null,null,null,null,null,null,null,null,null,null,0,0,0,0,0,0,0,0,0,0,0]
[187,"",null,null,null,null,null,null,null,null,null,null,null,null,null,null,null,null,null,null,null,null,null,null,null,null,null,null,null,null,null,null,null,null,null,null,null,null,null,null,null,null,null,null,null,null,null,null,null,null,null,null,null,null,null,null,null,null,null,null,null,null,null,null,null,null,null,0,0,0,0,0,0,0,0,0,0,0]
[188,"",null,null,null,null,null,null,null,null,null,null,null,null,null,null,null,null,null,null,null,null,null,null,null,null,null,null,null,null,null,null,null,null,null,null,null,null,null,null,null,null,null,null,null,null,null,null,null,null,null,null,null,null,null,null,null,null,null,null,null,null,null,null,null,null,null,0,0,0,0,0,0,0,0,0,0,0]
[189,"",null,null,null,null,null,null,null,null,null,null,null,null,null,null,null,null,null,null,null,null,null,null,null,null,null,null,null,null,null,null,null,null,null,null,null,null,null,null,null,null,null,null,null,null,null,null,null,null,null,null,null,null,null,null,null,null,null,null,null,null,null,null,null,null,null,0,0,0,0,0,0,0,0,0,0,0]
[190,"",null,null,null,null,null,null,null,null,null,null,null,null,null,null,null,null,null,null,null,null,null,null,null,null,null,null,null,null,null,null,null,null,null,null,null,null,null,null,null,null,null,null,null,null,null,null,null,null,null,null,null,null,null,null,null,null,null,null,null,null,null,null,null,null,null,0,0,0,0,0,0,0,0,0,0,0]
[191,"",null,null,null,null,null,null,null,null,null,null,null,null,null,null,null,null,null,null,null,null,null,null,null,null,null,null,null,null,null,null,null,null,null,null,null,null,null,null,null,null,null,null,null,null,null,null,null,null,null,null,null,null,null,null,null,null,null,null,null,null,null,null,null,null,null,0,0,0,0,0,0,0,0,0,0,0]
[192,"",null,null,null,null,null,null,null,null,null,null,null,null,null,null,null,null,null,null,null,null,null,null,null,null,null,null,null,null,null,null,null,null,null,null,null,null,null,null,null,null,null,null,null,null,null,null,null,null,null,null,null,null,null,null,null,null,null,null,null,null,null,null,null,null,null,0,0,0,0,0,0,0,0,0,0,0]
[193,"",null,null,null,null,null,null,null,null,null,null,null,null,null,null,null,null,null,null,null,null,null,null,null,null,null,null,null,null,null,null,null,null,null,null,null,null,null,null,null,null,null,null,null,null,null,null,null,null,null,null,null,null,null,null,null,null,null,null,null,null,null,null,null,null,null,{"$f":"SUM(C197:F197)","v":0},{"$f":"SUM(K197:L197)","v":0},{"$f":"SUM(G197:J197)","v":0},0,0,0,0,0,0,0,0]
[194,"",null,null,null,null,null,null,null,null,null,null,null,null,null,null,null,null,null,null,null,null,null,null,null,null,null,null,null,null,null,null,null,null,null,null,null,null,null,null,null,null,null,null,null,null,null,null,null,null,null,null,null,null,null,null,null,null,null,null,null,null,null,null,null,null,null,0,0,0,{"$f":"SUM(M198:Q198)","v":0},{"$f":"SUM(R198:V198)","v":0},{"$f":"SUM(W198:AA198)","v":0},{"$f":"SUM(AB198:AF198)","v":0},{"$f":"SUM(AG198:AK198)","v":0},{"$f":"SUM(AL198:AP198)","v":0},{"$f":"SUM(AQ198:AU198)","v":0},{"$f":"SUM(BJ198:BN198)","v":0}]
[195,"",null,null,null,null,null,null,null,null,null,null,null,null,null,null,null,null,null,null,null,null,null,null,null,null,null,null,null,null,null,null,null,null,null,null,null,null,null,null,null,null,null,null,null,null,null,null,null,null,null,null,null,null,null,null,null,null,null,null,null,null,null,null,null,null,null,0,0,0,0,0,0,0,0,0,0,0]
[196,"",null,null,null,null,null,null,null,null,null,null,null,null,null,null,null,null,null,null,null,null,null,null,null,null,null,null,null,null,null,null,null,null,null,null,null,null,null,null,null,null,null,null,null,null,null,null,null,null,null,null,null,null,null,null,null,null,null,null,null,null,null,null,null,null,null,0,0,0,0,0,0,0,0,0,0,0]
[197,"",null,null,null,null,null,null,null,null,null,null,null,null,null,null,null,null,null,null,null,null,null,null,null,null,null,null,null,null,null,null,null,null,null,null,null,null,null,null,null,null,null,null,null,null,null,null,null,null,null,null,null,null,null,null,null,null,null,null,null,null,null,null,null,null,null,0,0,0,0,0,0,0,0,0,0,0]
[198,"",null,null,null,null,null,null,null,null,null,null,null,null,null,null,null,null,null,null,null,null,null,null,null,null,null,null,null,null,null,null,null,null,null,null,null,null,null,null,null,null,null,null,null,null,null,null,null,null,null,null,null,null,null,null,null,null,null,null,null,null,null,null,null,null,null,0,0,0,0,0,0,0,0,0,0,0]
[199,"",null,null,null,null,null,null,null,null,null,null,null,null,null,null,null,null,null,null,null,null,null,null,null,null,null,null,null,null,null,null,null,null,null,null,null,null,null,null,null,null,null,null,null,null,null,null,null,null,null,null,null,null,null,null,null,null,null,null,null,null,null,null,null,null,null,0,0,0,0,0,0,0,0,0,0,0]
[200,"",null,null,null,null,null,null,null,null,null,null,null,null,null,null,null,null,null,null,null,null,null,null,null,null,null,null,null,null,null,null,null,null,null,null,null,null,null,null,null,null,null,null,null,null,null,null,null,null,null,null,null,null,null,null,null,null,null,null,null,null,null,null,null,null,null,0,0,0,0,0,0,0,0,0,0,0]
[null,"",null,null,null,null,null,null,null,null,null,null,null,null,null,null,null,null,null,null,null,null,null,null,null,null,null,null,null,null,null,null,null,null,null,null,null,null,null,null,null,null,null,null,null,null,null,null,null,null,null,null,null,null,null,null,null,null,null,null,null,null,null,null,null,null,null,0,0,0,0,0,0,0,0,0,0,0]
[null,"",null,null,null,null,null,null,null,null,null,null,null,null,null,null,null,null,null,null,null,null,null,null,null,null,null,null,null,null,null,null,null,null,null,null,null,null,null,null,null,null,null,null,null,null,null,null,null,null,null,null,null,null,null,null,null,null,null,null,null,null,null,null,null,null,null,0,0,0,0,0,0,0,0,0,0,0]
["小計",null,{"$f":"SUM(C5:C206)","v":0},0,0,0,{"$f":"SUM(G5:G206)","v":0},{"$f":"SUM(H5:H206)","v":0},{"$f":"SUM(I5:I206)","v":0},{"$f":"SUM(J5:J206)","v":0},0,0,0,0,0,0,0,0,0,0,0,0,0,0,0,0,0,0,0,0,0,0,0,0,{"$f":"SUM(AI5:AI206)","v":0},0,0,0,0,0,0,0,0,0,0,0,0,0,0,0,0,0,0,0,0,0,0,0,0,0,0,0,0,0,0,0]

{"sheet":"集計表（実施者）","index":3,"n_rows":85,"n_cols":12,"rows_kept":85,"cut":false,"hidden":false,"merged":[[31,1,35,1],[37,1,44,1],[30,1,30,10],[31,2,31,4],[32,2,32,4],[33,2,33,4],[37,10,44,10],[36,1,36,10],[37,2,37,4],[38,2,38,4],[31,10,35,10],[35,2,35,4],[44,2,44,4],[34,2,34,4],[82,2,82,10],[83,2,83,10],[84,2,84,10],[76,2,76,10],[77,2,77,10],[81,2,81,10],[79,2,79,10],[80,2,80,10],[78,2,78,10],[75,2,75,10],[54,1,54,10],[67,2,67,10],[68,2,68,10],[69,2,69,10],[70,2,70,10],[71,2,71,10],[72,2,72,10],[73,2,73,10],[74,2,74,10],[55,2,55,10],[56,2,56,10],[57,2,57,10],[58,2,58,10],[59,2,59,10],[60,2,60,10],[45,1,45,10],[39,2,39,4],[40,2,40,4],[41,2,41,4],[42,2,42,4],[43,2,43,4],[28,2,28,4],[20,1,20,10],[21,2,21,4],[22,2,22,4],[24,1,24,10],[21,1,23,1],[25,1,29,1],[25,2,25,4],[26,2,26,4],[27,2,27,4],[25,10,29,10],[23,2,23,4],[29,2,29,4],[21,10,23,10],[16,2,16,4],[17,2,17,4],[18,2,18,4],[9,2,9,4],[10,2,10,4],[11,2,11,4],[12,2,12,4],[13,2,13,4],[14,1,14,10],[15,2,15,4],[9,1,13,1],[15,1,19,1],[9,10,13,10],[15,10,19,10],[19,2,19,4],[8,1,8,10],[7,1,7,4],[0,1,0,10],[1,1,1,10],[3,4,3,10],[4,4,4,10],[6,1,6,4],[66,2,66,10],[46,2,46,10],[47,2,47,10],[48,2,48,10],[49,2,49,10],[50,2,50,10],[61,2,61,10],[62,2,62,10],[63,2,63,10],[64,2,64,10],[65,2,65,10]]}
[null,"平成２９年度　ひらめき☆ときめきサイエンス～ようこそ大学の研究室へ～KAKENHI"]
[null,"（研究成果の社会還元・普及事業）　アンケート集計表    《　実施者　》"]
[]
[null,null,null,"整理番号",{"$f":"'集計表（参加者）'!E4:K4","v":"HT29000（機関名）"}]
[null,null,null,"プログラム名",{"$f":"'集計表（参加者）'!E5:K5","v":"○○○○○○○○○○"}]
[]
[null,null,null,null,null,"教員等","学部生・大学院生等","事務職員","その他","計","その他\n記入欄"]
[null,"アンケート回収枚数",null,null,null,{"$f":"'入力用（実施者）'!C58","v":0},{"$f":"'入力用（実施者）'!D58","v":0},{"$f":"'入力用（実施者）'!E58","v":0},{"$f":"'入力用（実施者）'!F58","v":0},{"$f":"SUM(F8:I8)","v":0}]
[null,"①本事業を実施することをどのように思いましたか。"]
[null,null,"１．非常に有意義である",null,null,{"$f":"SUMIF('入力用（実施者）'!$B$5:$B$54,F$7,'入力用（実施者）'!$G$5:$G$54)","v":0},{"$f":"SUMIF('入力用（実施者）'!$B$5:$B$54,G$7,'入力用（実施者）'!$G$5:$G$54)","v":0},{"$f":"SUMIF('入力用（実施者）'!$B$5:$B$54,H$7,'入力用（実施者）'!$G$5:$G$54)","v":0},{"$f":"SUMIF('入力用（実施者）'!$B$5:$B$54,I$7,'入力用（実施者）'!$G$5:$G$54)","v":0},{"$f":"SUM(F10:I10)","v":0}]
[null,null,"２．有意義である",null,null,{"$f":"SUMIF('入力用（実施者）'!$B$5:$B$54,F$7,'入力用（実施者）'!$H$5:$H$54)","v":0},{"$f":"SUMIF('入力用（実施者）'!$B$5:$B$54,G$7,'入力用（実施者）'!$H$5:$H$54)","v":0},{"$f":"SUMIF('入力用（実施者）'!$B$5:$B$54,H$7,'入力用（実施者）'!$H$5:$H$54)","v":0},{"$f":"SUMIF('入力用（実施者）'!$B$5:$B$54,I$7,'入力用（実施者）'!$H$5:$H$54)","v":0},{"$f":"SUM(F11:I11)","v":0}]
[null,null,"３．あまり有意義でない",null,null,{"$f":"SUMIF('入力用（実施者）'!$B$5:$B$54,F$7,'入力用（実施者）'!$I$5:$I$54)","v":0},{"$f":"SUMIF('入力用（実施者）'!$B$5:$B$54,G$7,'入力用（実施者）'!$I$5:$I$54)","v":0},{"$f":"SUMIF('入力用（実施者）'!$B$5:$B$54,H$7,'入力用（実施者）'!$I$5:$I$54)","v":0},{"$f":"SUMIF('入力用（実施者）'!$B$5:$B$54,I$7,'入力用（実施者）'!$I$5:$I$54)","v":0},{"$f":"SUM(F12:I12)","v":0}]
[null,null,"４．わからない",null,null,{"$f":"SUMIF('入力用（実施者）'!$B$5:$B$54,F$7,'入力用（実施者）'!$J$5:$J$54)","v":0},{"$f":"SUMIF('入力用（実施者）'!$B$5:$B$54,G$7,'入力用（実施者）'!$J$5:$J$54)","v":0},{"$f":"SUMIF('入力用（実施者）'!$B$5:$B$54,H$7,'入力用（実施者）'!$J$5:$J$54)","v":0},{"$f":"SUMIF('入力用（実施者）'!$B$5:$B$54,I$7,'入力用（実施者）'!$J$5:$J$54)","v":0},{"$f":"SUM(F13:I13)","v":0}]
[null,null,"５．無回答",null,null,{"$f":"SUMIF('入力用（実施者）'!$B$5:$B$54,F$7,'入力用（実施者）'!$K$5:$K$54)","v":0},{"$f":"SUMIF('入力用（実施者）'!$B$5:$B$54,G$7,'入力用（実施者）'!$K$5:$K$54)","v":0},{"$f":"SUMIF('入力用（実施者）'!$B$5:$B$54,H$7,'入力用（実施者）'!$K$5:$K$54)","v":0},{"$f":"SUMIF('入力用（実施者）'!$B$5:$B$54,I$7,'入力用（実施者）'!$K$5:$K$54)","v":0},{"$f":"SUM(F14:I14)","v":0},null,{"$f":"SUM(J10:J14)","v":0}]
[null,"②本事業を今後も実施したいと思いましたか。"]
[null,null,"１．毎年でも実施したい",null,null,{"$f":"SUMIF('入力用（実施者）'!$B$5:$B$54,F$7,'入力用（実施者）'!$L$5:$L$54)","v":0},{"$f":"SUMIF('入力用（実施者）'!$B$5:$B$54,G$7,'入力用（実施者）'!$L$5:$L$54)","v":0},{"$f":"SUMIF('入力用（実施者）'!$B$5:$B$54,H$7,'入力用（実施者）'!$L$5:$L$54)","v":0},{"$f":"SUMIF('入力用（実施者）'!$B$5:$B$54,I$7,'入力用（実施者）'!$L$5:$L$54)","v":0},{"$f":"SUM(F16:I16)","v":0}]
[null,null,"２．可能な範囲で実施したい",null,null,{"$f":"SUMIF('入力用（実施者）'!$B$5:$B$54,F$7,'入力用（実施者）'!$M$5:$M$54)","v":0},{"$f":"SUMIF('入力用（実施者）'!$B$5:$B$54,G$7,'入力用（実施者）'!$M$5:$M$54)","v":0},{"$f":"SUMIF('入力用（実施者）'!$B$5:$B$54,H$7,'入力用（実施者）'!$M$5:$M$54)","v":0},{"$f":"SUMIF('入力用（実施者）'!$B$5:$B$54,I$7,'入力用（実施者）'!$M$5:$M$54)","v":0},{"$f":"SUM(F17:I17)","v":0}]
[null,null,"３．あまり実施したくない",null,null,{"$f":"SUMIF('入力用（実施者）'!$B$5:$B$54,F$7,'入力用（実施者）'!$N$5:$N$54)","v":0},{"$f":"SUMIF('入力用（実施者）'!$B$5:$B$54,G$7,'入力用（実施者）'!$N$5:$N$54)","v":0},{"$f":"SUMIF('入力用（実施者）'!$B$5:$B$54,H$7,'入力用（実施者）'!$N$5:$N$54)","v":0},{"$f":"SUMIF('入力用（実施者）'!$B$5:$B$54,I$7,'入力用（実施者）'!$N$5:$N$54)","v":0},{"$f":"SUM(F18:I18)","v":0}]
[null,null,"４．わからない",null,null,{"$f":"SUMIF('入力用（実施者）'!$B$5:$B$54,F$7,'入力用（実施者）'!$O$5:$O$54)","v":0},{"$f":"SUMIF('入力用（実施者）'!$B$5:$B$54,G$7,'入力用（実施者）'!$O$5:$O$54)","v":0},{"$f":"SUMIF('入力用（実施者）'!$B$5:$B$54,H$7,'入力用（実施者）'!$O$5:$O$54)","v":0},{"$f":"SUMIF('入力用（実施者）'!$B$5:$B$54,I$7,'入力用（実施者）'!$O$5:$O$54)","v":0},{"$f":"SUM(F19:I19)","v":0}]
[null,null,"５．無回答",null,null,{"$f":"SUMIF('入力用（実施者）'!$B$5:$B$54,F$7,'入力用（実施者）'!$P$5:$P$54)","v":0},{"$f":"SUMIF('入力用（実施者）'!$B$5:$B$54,G$7,'入力用（実施者）'!$P$5:$P$54)","v":0},{"$f":"SUMIF('入力用（実施者）'!$B$5:$B$54,H$7,'入力用（実施者）'!$P$5:$P$54)","v":0},{"$f":"SUMIF('入力用（実施者）'!$B$5:$B$54,I$7,'入力用（実施者）'!$P$5:$P$54)","v":0},{"$f":"SUM(F20:I20)","v":0},null,{"$f":"SUM(J16:J20)","v":0}]
[null,"「３．あまり実施したくない、４．わからない」と回答された方は、どのような理由ですか。"]
[null,null,"１．準備などの負担が過大である",null,null,{"$f":"SUMIF('入力用（実施者）'!$B$5:$B$54,F$7,'入力用（実施者）'!$Q$5:$Q$54)","v":0},{"$f":"SUMIF('入力用（実施者）'!$B$5:$B$54,G$7,'入力用（実施者）'!$Q$5:$Q$54)","v":0},{"$f":"SUMIF('入力用（実施者）'!$B$5:$B$54,H$7,'入力用（実施者）'!$Q$5:$Q$54)","v":0},{"$f":"SUMIF('入力用（実施者）'!$B$5:$B$54,I$7,'入力用（実施者）'!$Q$5:$Q$54)","v":0},{"$f":"SUM(F22:I22)","v":0},"・\n・\n・"]
[null,null,"２．その他",null,null,{"$f":"SUMIF('入力用（実施者）'!$B$5:$B$54,F$7,'入力用（実施者）'!$R$5:$R$54)","v":0},{"$f":"SUMIF('入力用（実施者）'!$B$5:$B$54,G$7,'入力用（実施者）'!$R$5:$R$54)","v":0},{"$f":"SUMIF('入力用（実施者）'!$B$5:$B$54,H$7,'入力用（実施者）'!$R$5:$R$54)","v":0},{"$f":"SUMIF('入力用（実施者）'!$B$5:$B$54,I$7,'入力用（実施者）'!$R$5:$R$54)","v":0},{"$f":"SUM(F23:I23)","v":0}]
[null,null,"３．無回答",null,null,{"$f":"SUMIF('入力用（実施者）'!$B$5:$B$54,F$7,'入力用（実施者）'!$S$5:$S$54)","v":0},{"$f":"SUMIF('入力用（実施者）'!$B$5:$B$54,G$7,'入力用（実施者）'!$S$5:$S$54)","v":0},{"$f":"SUMIF('入力用（実施者）'!$B$5:$B$54,H$7,'入力用（実施者）'!$S$5:$S$54)","v":0},{"$f":"SUMIF('入力用（実施者）'!$B$5:$B$54,I$7,'入力用（実施者）'!$S$5:$S$54)","v":0},{"$f":"SUM(F24:I24)","v":0},null,{"$f":"SUM(J22:J24)","v":0}]
[null,"③小中高生の知的好奇心を刺激できたと思いましたか。"]
[null,null,"１．非常に刺激できた",null,null,{"$f":"SUMIF('入力用（実施者）'!$B$5:$B$54,F$7,'入力用（実施者）'!$T$5:$T$54)","v":0},{"$f":"SUMIF('入力用（実施者）'!$B$5:$B$54,G$7,'入力用（実施者）'!$T$5:$T$54)","v":0},{"$f":"SUMIF('入力用（実施者）'!$B$5:$B$54,H$7,'入力用（実施者）'!$T$5:$T$54)","v":0},{"$f":"SUMIF('入力用（実施者）'!$B$5:$B$54,I$7,'入力用（実施者）'!$T$5:$T$54)","v":0},{"$f":"SUM(F26:I26)","v":0}]
[null,null,"２．まずまず刺激できた",null,null,{"$f":"SUMIF('入力用（実施者）'!$B$5:$B$54,F$7,'入力用（実施者）'!$U$5:$U$54)","v":0},{"$f":"SUMIF('入力用（実施者）'!$B$5:$B$54,G$7,'入力用（実施者）'!$U$5:$U$54)","v":0},{"$f":"SUMIF('入力用（実施者）'!$B$5:$B$54,H$7,'入力用（実施者）'!$U$5:$U$54)","v":0},{"$f":"SUMIF('入力用（実施者）'!$B$5:$B$54,I$7,'入力用（実施者）'!$U$5:$U$54)","v":0},{"$f":"SUM(F27:I27)","v":0}]
[null,null,"３．あまり刺激できなかった",null,null,{"$f":"SUMIF('入力用（実施者）'!$B$5:$B$54,F$7,'入力用（実施者）'!$V$5:$V$54)","v":0},{"$f":"SUMIF('入力用（実施者）'!$B$5:$B$54,G$7,'入力用（実施者）'!$V$5:$V$54)","v":0},{"$f":"SUMIF('入力用（実施者）'!$B$5:$B$54,H$7,'入力用（実施者）'!$V$5:$V$54)","v":0},{"$f":"SUMIF('入力用（実施者）'!$B$5:$B$54,I$7,'入力用（実施者）'!$V$5:$V$54)","v":0},{"$f":"SUM(F28:I28)","v":0}]
[null,null,"４．わからない",null,null,{"$f":"SUMIF('入力用（実施者）'!$B$5:$B$54,F$7,'入力用（実施者）'!$W$5:$W$54)","v":0},{"$f":"SUMIF('入力用（実施者）'!$B$5:$B$54,G$7,'入力用（実施者）'!$W$5:$W$54)","v":0},{"$f":"SUMIF('入力用（実施者）'!$B$5:$B$54,H$7,'入力用（実施者）'!$W$5:$W$54)","v":0},{"$f":"SUMIF('入力用（実施者）'!$B$5:$B$54,I$7,'入力用（実施者）'!$W$5:$W$54)","v":0},{"$f":"SUM(F29:I29)","v":0}]
[null,null,"５．無回答",null,null,{"$f":"SUMIF('入力用（実施者）'!$B$5:$B$54,F$7,'入力用（実施者）'!$X$5:$X$54)","v":0},{"$f":"SUMIF('入力用（実施者）'!$B$5:$B$54,G$7,'入力用（実施者）'!$X$5:$X$54)","v":0},{"$f":"SUMIF('入力用（実施者）'!$B$5:$B$54,H$7,'入力用（実施者）'!$X$5:$X$54)","v":0},{"$f":"SUMIF('入力用（実施者）'!$B$5:$B$54,I$7,'入力用（実施者）'!$X$5:$X$54)","v":0},{"$f":"SUM(F30:I30)","v":0},null,{"$f":"SUM(J26:J30)","v":0}]
[null,"④研究成果を受講生にわかりやすく説明することができたと思いましたか。"]
[null,null,"１．非常にわかりやすくできた",null,null,{"$f":"SUMIF('入力用（実施者）'!$B$5:$B$54,F$7,'入力用（実施者）'!$Y$5:$Y$54)","v":0},{"$f":"SUMIF('入力用（実施者）'!$B$5:$B$54,G$7,'入力用（実施者）'!$Y$5:$Y$54)","v":0},{"$f":"SUMIF('入力用（実施者）'!$B$5:$B$54,H$7,'入力用（実施者）'!$Y$5:$Y$54)","v":0},{"$f":"SUMIF('入力用（実施者）'!$B$5:$B$54,I$7,'入力用（実施者）'!$Y$5:$Y$54)","v":0},{"$f":"SUM(F32:I32)","v":0}]
[null,null,"２．まずまずできた",null,null,{"$f":"SUMIF('入力用（実施者）'!$B$5:$B$54,F$7,'入力用（実施者）'!$Z$5:$Z$54)","v":0},{"$f":"SUMIF('入力用（実施者）'!$B$5:$B$54,G$7,'入力用（実施者）'!$Z$5:$Z$54)","v":0},{"$f":"SUMIF('入力用（実施者）'!$B$5:$B$54,H$7,'入力用（実施者）'!$Z$5:$Z$54)","v":0},{"$f":"SUMIF('入力用（実施者）'!$B$5:$B$54,I$7,'入力用（実施者）'!$Z$5:$Z$54)","v":0},{"$f":"SUM(F33:I33)","v":0}]
[null,null,"３．あまりできなかった",null,null,{"$f":"SUMIF('入力用（実施者）'!$B$5:$B$54,F$7,'入力用（実施者）'!$AA$5:$AA$54)","v":0},{"$f":"SUMIF('入力用（実施者）'!$B$5:$B$54,G$7,'入力用（実施者）'!$AA$5:$AA$54)","v":0},{"$f":"SUMIF('入力用（実施者）'!$B$5:$B$54,H$7,'入力用（実施者）'!$AA$5:$AA$54)","v":0},{"$f":"SUMIF('入力用（実施者）'!$B$5:$B$54,I$7,'入力用（実施者）'!$AA$5:$AA$54)","v":0},{"$f":"SUM(F34:I34)","v":0}]
[null,null,"４．わからない",null,null,{"$f":"SUMIF('入力用（実施者）'!$B$5:$B$54,F$7,'入力用（実施者）'!$AB$5:$AB$54)","v":0},{"$f":"SUMIF('入力用（実施者）'!$B$5:$B$54,G$7,'入力用（実施者）'!$AB$5:$AB$54)","v":0},{"$f":"SUMIF('入力用（実施者）'!$B$5:$B$54,H$7,'入力用（実施者）'!$AB$5:$AB$54)","v":0},{"$f":"SUMIF('入力用（実施者）'!$B$5:$B$54,I$7,'入力用（実施者）'!$AB$5:$AB$54)","v":0},{"$f":"SUM(F35:I35)","v":0}]
[null,null,"５．無回答",null,null,{"$f":"SUMIF('入力用（実施者）'!$B$5:$B$54,F$7,'入力用（実施者）'!$AC$5:$AC$54)","v":0},{"$f":"SUMIF('入力用（実施者）'!$B$5:$B$54,G$7,'入力用（実施者）'!$AC$5:$AC$54)","v":0},{"$f":"SUMIF('入力用（実施者）'!$B$5:$B$54,H$7,'入力用（実施者）'!$AC$5:$AC$54)","v":0},{"$f":"SUMIF('入力用（実施者）'!$B$5:$B$54,I$7,'入力用（実施者）'!$AC$5:$AC$54)","v":0},{"$f":"SUM(F36:I36)","v":0},null,{"$f":"SUM(J32:J36)","v":0}]
[null,"⑤本プログラムの実施にあたり、どのような広報活動が効果があったと思いますか。"]
[null,null,"１．近隣小中高校へのチラシの送付",null,null,{"$f":"SUMIF('入力用（実施者）'!$B$5:$B$54,F$7,'入力用（実施者）'!$AD$5:$AD$54)","v":0},{"$f":"SUMIF('入力用（実施者）'!$B$5:$B$54,G$7,'入力用（実施者）'!$AD$5:$AD$54)","v":0},{"$f":"SUMIF('入力用（実施者）'!$B$5:$B$54,H$7,'入力用（実施者）'!$AD$5:$AD$54)","v":0},{"$f":"SUMIF('入力用（実施者）'!$B$5:$B$54,I$7,'入力用（実施者）'!$AD$5:$AD$54)","v":0},{"$f":"SUM(F38:I38)","v":0},"・\n・\n・\n・\n・\n"]
[null,null,"２．近隣小中高校へ直接行っての広報活動",null,null,{"$f":"SUMIF('入力用（実施者）'!$B$5:$B$54,F$7,'入力用（実施者）'!$AE$5:$AE$54)","v":0},{"$f":"SUMIF('入力用（実施者）'!$B$5:$B$54,G$7,'入力用（実施者）'!$AE$5:$AE$54)","v":0},{"$f":"SUMIF('入力用（実施者）'!$B$5:$B$54,H$7,'入力用（実施者）'!$AE$5:$AE$54)","v":0},{"$f":"SUMIF('入力用（実施者）'!$B$5:$B$54,I$7,'入力用（実施者）'!$AE$5:$AE$54)","v":0},0]
[null,null,"３．駅、電車等へのポスター掲示、吊り広告等",null,null,{"$f":"SUMIF('入力用（実施者）'!$B$5:$B$54,F$7,'入力用（実施者）'!$AF$5:$AF$54)","v":0},{"$f":"SUMIF('入力用（実施者）'!$B$5:$B$54,G$7,'入力用（実施者）'!$AF$5:$AF$54)","v":0},{"$f":"SUMIF('入力用（実施者）'!$B$5:$B$54,H$7,'入力用（実施者）'!$AF$5:$AF$54)","v":0},{"$f":"SUMIF('入力用（実施者）'!$B$5:$B$54,I$7,'入力用（実施者）'!$AF$5:$AF$54)","v":0},0]
[null,null,"４．図書館等公共機関でのポスター掲示",null,null,{"$f":"SUMIF('入力用（実施者）'!$B$5:$B$54,F$7,'入力用（実施者）'!$AG$5:$AG$54)","v":0},{"$f":"SUMIF('入力用（実施者）'!$B$5:$B$54,G$7,'入力用（実施者）'!$AG$5:$AG$54)","v":0},{"$f":"SUMIF('入力用（実施者）'!$B$5:$B$54,H$7,'入力用（実施者）'!$AG$5:$AG$54)","v":0},{"$f":"SUMIF('入力用（実施者）'!$B$5:$B$54,I$7,'入力用（実施者）'!$AG$5:$AG$54)","v":0},0]
[null,null,"５．新聞、地域誌への広告掲示",null,null,{"$f":"SUMIF('入力用（実施者）'!$B$5:$B$54,F$7,'入力用（実施者）'!$AH$5:$AH$54)","v":0},{"$f":"SUMIF('入力用（実施者）'!$B$5:$B$54,G$7,'入力用（実施者）'!$AH$5:$AH$54)","v":0},{"$f":"SUMIF('入力用（実施者）'!$B$5:$B$54,H$7,'入力用（実施者）'!$AH$5:$AH$54)","v":0},{"$f":"SUMIF('入力用（実施者）'!$B$5:$B$54,I$7,'入力用（実施者）'!$AH$5:$AH$54)","v":0},0]
[null,null,"６．機関ホームページ等での広報",null,null,{"$f":"SUMIF('入力用（実施者）'!$B$5:$B$54,F$7,'入力用（実施者）'!$AI$5:$AI$54)","v":0},{"$f":"SUMIF('入力用（実施者）'!$B$5:$B$54,G$7,'入力用（実施者）'!$AI$5:$AI$54)","v":0},{"$f":"SUMIF('入力用（実施者）'!$B$5:$B$54,H$7,'入力用（実施者）'!$AI$5:$AI$54)","v":0},{"$f":"SUMIF('入力用（実施者）'!$B$5:$B$54,I$7,'入力用（実施者）'!$AI$5:$AI$54)","v":0},0]
[null,null,"７．その他",null,null,{"$f":"SUMIF('入力用（実施者）'!$B$5:$B$54,F$7,'入力用（実施者）'!$AJ$5:$AJ$54)","v":0},{"$f":"SUMIF('入力用（実施者）'!$B$5:$B$54,G$7,'入力用（実施者）'!$AJ$5:$AJ$54)","v":0},{"$f":"SUMIF('入力用（実施者）'!$B$5:$B$54,H$7,'入力用（実施者）'!$AJ$5:$AJ$54)","v":0},{"$f":"SUMIF('入力用（実施者）'!$B$5:$B$54,I$7,'入力用（実施者）'!$AJ$5:$AJ$54)","v":0},0]
[null,null,"８．無回答",null,null,{"$f":"SUMIF('入力用（実施者）'!$B$5:$B$54,F$7,'入力用（実施者）'!$AK$5:$AK$54)","v":0},{"$f":"SUMIF('入力用（実施者）'!$B$5:$B$54,G$7,'入力用（実施者）'!$AK$5:$AK$54)","v":0},{"$f":"SUMIF('入力用（実施者）'!$B$5:$B$54,H$7,'入力用（実施者）'!$AK$5:$AK$54)","v":0},{"$f":"SUMIF('入力用（実施者）'!$B$5:$B$54,I$7,'入力用（実施者）'!$AK$5:$AK$54)","v":0},0]
[null,"　日本学術振興会に期待すること"]
[null,"・"]
[null,"・"]
[null,"・"]
[null,"・"]
[null,"・"]
[]
[null,null,null,null,null,null,null,null,null,null,{"$f":"E4&\"　\"&E5","v":"HT29000（機関名）　○○○○○○○○○○"}]
[]
[null,"　意見・感想など"]
[null,"・"]
[null,"・"]
[null,"・"]
[null,"・"]
[null,"・"]
[null,"・"]
[null,"・"]
[null,"・"]
[null,"・"]
[null,"・"]
[null,"・"]
[null,"・"]
[null,"・"]
[null,"・"]
[null,"・"]
[null,"・"]
[null,"・"]
[null,"・"]
[null,"・"]
[null,"・"]
[null,"・"]
[null,"・"]
[null,"・"]
[null,"・"]
[null,"・"]
[null,"・"]
[null,"・"]
[null,"・"]
[null,"・"]
[null,"・"]

{"sheet":"入力用（実施者）","index":4,"n_rows":58,"n_cols":45,"rows_kept":58,"cut":false,"hidden":false,"merged":[[57,0,57,1],[2,29,2,36],[2,2,2,5],[2,6,2,10],[2,11,2,15],[2,16,2,18],[2,19,2,23],[2,24,2,28]]}
[]
["小計",null,{"$f":"SUM(C5:C57)","v":0},{"$f":"SUM(D5:D57)","v":0},0,0,0,0,0,0,0,0,0,0,0,0,0,0,0,0,0,0,0,0,0,0,0,0,0,0,0,0,0,0,0,0,0]
[null,null,"対象者",null,null,null,"Q1",null,null,null,null,"Q2",null,null,null,null,"Q2-2",null,null,"Q3",null,null,null,null,"Q4",null,null,null,null,"Q5"]
[null,null,"教員等","学部生・大学院生等","事務職員","その他","非常に有意義である","有意義である","あまり有意義でない","わからない","無回答","毎年でも実施したい","可能な範囲で実施したい","あまり実施したくない","わからない","無回答","準備などの負担が過大である","その他","無回答","非常に刺激できた","まずまず刺激できた","あまり刺激できなかった","わからない","無回答","非常にわかりやすくできた","まずまずできた","あまりできなかった","わからない","無回答","近隣小中高校へのチラシ送付","近隣小中高校へ直接行って広報活動","駅、電車等へのポスター掲示、吊り広告等","図書館等公共機関でのポスター掲示","新聞、地域誌への広告掲示","機関HP等での広報","その他","無回答",null,"対象者","Q1","Q2","Q2-2","Q3","Q4","Q5"]
[1,{"$f":"IF($C5=1,\"教員等\",IF($D5=1,\"学部生・大学院生等\",IF($E5=1,\"事務職員\",IF($F5=1,\"その他\",\"\"))))","v":""},null,null,null,null,null,null,null,null,null,null,null,null,null,null,null,null,null,null,null,null,null,null,null,null,null,null,null,null,null,null,null,null,null,null,null,null,{"$f":"SUM(C5:F5)","v":0},{"$f":"SUM(G5:K5)","v":0},{"$f":"SUM(L5:P5)","v":0},{"$f":"SUM(Q5:S5)","v":0},{"$f":"SUM(T5:X5)","v":0},{"$f":"SUM(Y5:AC5)","v":0},{"$f":"SUM(AD5:AK5)","v":0}]
[2,{"$f":"IF($C6=1,\"教員等\",IF($D6=1,\"学部生・大学院生等\",IF($E6=1,\"事務職員\",IF($F6=1,\"その他\",\"\"))))","v":""},null,null,null,null,null,null,null,null,null,null,null,null,null,null,null,null,null,null,null,null,null,null,null,null,null,null,null,null,null,null,null,null,null,null,null,null,{"$f":"SUM(C6:F6)","v":0},{"$f":"SUM(G6:K6)","v":0},{"$f":"SUM(L6:P6)","v":0},{"$f":"SUM(Q6:S6)","v":0},{"$f":"SUM(T6:X6)","v":0},{"$f":"SUM(Y6:AC6)","v":0},{"$f":"SUM(AD6:AK6)","v":0}]
[3,"",null,null,null,null,null,null,null,null,null,null,null,null,null,null,null,null,null,null,null,null,null,null,null,null,null,null,null,null,null,null,null,null,null,null,null,null,0,0,0,0,0,0,0]
[4,"",null,null,null,null,null,null,null,null,null,null,null,null,null,null,null,null,null,null,null,null,null,null,null,null,null,null,null,null,null,null,null,null,null,null,null,null,0,0,0,0,0,0,0]
[5,"",null,null,null,null,null,null,null,null,null,null,null,null,null,null,null,null,null,null,null,null,null,null,null,null,null,null,null,null,null,null,null,null,null,null,null,null,0,0,0,0,0,0,0]
[6,"",null,null,null,null,null,null,null,null,null,null,null,null,null,null,null,null,null,null,null,null,null,null,null,null,null,null,null,null,null,null,null,null,null,null,null,null,0,0,0,0,0,0,0]
[7,"",null,null,null,null,null,null,null,null,null,null,null,null,null,null,null,null,null,null,null,null,null,null,null,null,null,null,null,null,null,null,null,null,null,null,null,null,0,0,0,0,0,0,0]
[8,"",null,null,null,null,null,null,null,null,null,null,null,null,null,null,null,null,null,null,null,null,null,null,null,null,null,null,null,null,null,null,null,null,null,null,null,null,0,0,0,0,0,0,0]
[9,"",null,null,null,null,null,null,null,null,null,null,null,null,null,null,null,null,null,null,null,null,null,null,null,null,null,null,null,null,null,null,null,null,null,null,null,null,0,0,0,0,0,0,0]
[10,"",null,null,null,null,null,null,null,null,null,null,null,null,null,null,null,null,null,null,null,null,null,null,null,null,null,null,null,null,null,null,null,null,null,null,null,null,0,0,0,0,0,0,0]
[11,"",null,null,null,null,null,null,null,null,null,null,null,null,null,null,null,null,null,null,null,null,null,null,null,null,null,null,null,null,null,null,null,null,null,null,null,null,0,0,0,0,0,0,0]
[12,"",null,null,null,null,null,null,null,null,null,null,null,null,null,null,null,null,null,null,null,null,null,null,null,null,null,null,null,null,null,null,null,null,null,null,null,null,0,0,0,0,0,0,0]
[13,"",null,null,null,null,null,null,null,null,null,null,null,null,null,null,null,null,null,null,null,null,null,null,null,null,null,null,null,null,null,null,null,null,null,null,null,null,0,0,0,0,0,0,0]
[14,"",null,null,null,null,null,null,null,null,null,null,null,null,null,null,null,null,null,null,null,null,null,null,null,null,null,null,null,null,null,null,null,null,null,null,null,null,0,0,0,0,0,0,0]
[15,"",null,null,null,null,null,null,null,null,null,null,null,null,null,null,null,null,null,null,null,null,null,null,null,null,null,null,null,null,null,null,null,null,null,null,null,null,0,0,0,0,0,0,0]
[16,"",null,null,null,null,null,null,null,null,null,null,null,null,null,null,null,null,null,null,null,null,null,null,null,null,null,null,null,null,null,null,null,null,null,null,null,null,0,0,0,0,0,0,0]
[17,"",null,null,null,null,null,null,null,null,null,null,null,null,null,null,null,null,null,null,null,null,null,null,null,null,null,null,null,null,null,null,null,null,null,null,null,null,0,0,0,0,0,0,0]
[18,"",null,null,null,null,null,null,null,null,null,null,null,null,null,null,null,null,null,null,null,null,null,null,null,null,null,null,null,null,null,null,null,null,null,null,null,null,0,0,0,0,0,0,0]
[19,"",null,null,null,null,null,null,null,null,null,null,null,null,null,null,null,null,null,null,null,null,null,null,null,null,null,null,null,null,null,null,null,null,null,null,null,null,0,0,0,0,0,0,0]
[20,"",null,null,null,null,null,null,null,null,null,null,null,null,null,null,null,null,null,null,null,null,null,null,null,null,null,null,null,null,null,null,null,null,null,null,null,null,0,0,0,0,0,0,0]
[21,"",null,null,null,null,null,null,null,null,null,null,null,null,null,null,null,null,null,null,null,null,null,null,null,null,null,null,null,null,null,null,null,null,null,null,null,null,0,0,0,0,0,0,0]
[22,"",null,null,null,null,null,null,null,null,null,null,null,null,null,null,null,null,null,null,null,null,null,null,null,null,null,null,null,null,null,null,null,null,null,null,null,null,0,0,0,0,0,0,0]
[23,"",null,null,null,null,null,null,null,null,null,null,null,null,null,null,null,null,null,null,null,null,null,null,null,null,null,null,null,null,null,null,null,null,null,null,null,null,0,0,0,0,0,0,0]
[24,"",null,null,null,null,null,null,null,null,null,null,null,null,null,null,null,null,null,null,null,null,null,null,null,null,null,null,null,null,null,null,null,null,null,null,null,null,0,0,0,0,0,0,0]
[25,"",null,null,null,null,null,null,null,null,null,null,null,null,null,null,null,null,null,null,null,null,null,null,null,null,null,null,null,null,null,null,null,null,null,null,null,null,0,0,0,0,0,0,0]
[26,"",null,null,null,null,null,null,null,null,null,null,null,null,null,null,null,null,null,null,null,null,null,null,null,null,null,null,null,null,null,null,null,null,null,null,null,null,0,0,0,0,0,0,0]
[27,"",null,null,null,null,null,null,null,null,null,null,null,null,null,null,null,null,null,null,null,null,null,null,null,null,null,null,null,null,null,null,null,null,null,null,null,null,0,0,0,0,0,0,0]
[28,"",null,null,null,null,null,null,null,null,null,null,null,null,null,null,null,null,null,null,null,null,null,null,null,null,null,null,null,null,null,null,null,null,null,null,null,null,0,0,0,0,0,0,0]
[29,"",null,null,null,null,null,null,null,null,null,null,null,null,null,null,null,null,null,null,null,null,null,null,null,null,null,null,null,null,null,null,null,null,null,null,null,null,0,0,0,0,0,0,0]
[30,"",null,null,null,null,null,null,null,null,null,null,null,null,null,null,null,null,null,null,null,null,null,null,null,null,null,null,null,null,null,null,null,null,null,null,null,null,0,0,0,0,0,0,0]
[31,"",null,null,null,null,null,null,null,null,null,null,null,null,null,null,null,null,null,null,null,null,null,null,null,null,null,null,null,null,null,null,null,null,null,null,null,null,0,0,0,0,0,0,0]
[32,"",null,null,null,null,null,null,null,null,null,null,null,null,null,null,null,null,null,null,null,null,null,null,null,null,null,null,null,null,null,null,null,null,null,null,null,null,0,0,0,0,0,0,0]
[33,"",null,null,null,null,null,null,null,null,null,null,null,null,null,null,null,null,null,null,null,null,null,null,null,null,null,null,null,null,null,null,null,null,null,null,null,null,0,0,0,0,0,0,0]
[34,"",null,null,null,null,null,null,null,null,null,null,null,null,null,null,null,null,null,null,null,null,null,null,null,null,null,null,null,null,null,null,null,null,null,null,null,null,0,0,0,0,0,0,0]
[35,"",null,null,null,null,null,null,null,null,null,null,null,null,null,null,null,null,null,null,null,null,null,null,null,null,null,null,null,null,null,null,null,null,null,null,null,null,0,0,0,0,0,0,0]
[36,"",null,null,null,null,null,null,null,null,null,null,null,null,null,null,null,null,null,null,null,null,null,null,null,null,null,null,null,null,null,null,null,null,null,null,null,null,0,0,0,0,0,0,0]
[37,"",null,null,null,null,null,null,null,null,null,null,null,null,null,null,null,null,null,null,null,null,null,null,null,null,null,null,null,null,null,null,null,null,null,null,null,null,0,0,0,0,0,0,0]
[38,"",null,null,null,null,null,null,null,null,null,null,null,null,null,null,null,null,null,null,null,null,null,null,null,null,null,null,null,null,null,null,null,null,null,null,null,null,0,0,0,0,0,0,0]
[39,"",null,null,null,null,null,null,null,null,null,null,null,null,null,null,null,null,null,null,null,null,null,null,null,null,null,null,null,null,null,null,null,null,null,null,null,null,0,0,0,0,0,0,0]
[40,"",null,null,null,null,null,null,null,null,null,null,null,null,null,null,null,null,null,null,null,null,null,null,null,null,null,null,null,null,null,null,null,null,null,null,null,null,0,0,0,0,0,0,0]
[41,"",null,null,null,null,null,null,null,null,null,null,null,null,null,null,null,null,null,null,null,null,null,null,null,null,null,null,null,null,null,null,null,null,null,null,null,null,0,0,0,0,0,0,0]
[42,"",null,null,null,null,null,null,null,null,null,null,null,null,null,null,null,null,null,null,null,null,null,null,null,null,null,null,null,null,null,null,null,null,null,null,null,null,0,0,0,0,0,0,0]
[43,"",null,null,null,null,null,null,null,null,null,null,null,null,null,null,null,null,null,null,null,null,null,null,null,null,null,null,null,null,null,null,null,null,null,null,null,null,0,0,0,0,0,0,0]
[44,"",null,null,null,null,null,null,null,null,null,null,null,null,null,null,null,null,null,null,null,null,null,null,null,null,null,null,null,null,null,null,null,null,null,null,null,null,0,0,0,0,0,0,0]
[45,"",null,null,null,null,null,null,null,null,null,null,null,null,null,null,null,null,null,null,null,null,null,null,null,null,null,null,null,null,null,null,null,null,null,null,null,null,0,0,0,0,0,0,0]
[46,"",null,null,null,null,null,null,null,null,null,null,null,null,null,null,null,null,null,null,null,null,null,null,null,null,null,null,null,null,null,null,null,null,null,null,null,null,0,0,0,0,0,0,0]
[47,"",null,null,null,null,null,null,null,null,null,null,null,null,null,null,null,null,null,null,null,null,null,null,null,null,null,null,null,null,null,null,null,null,null,null,null,null,0,0,0,0,0,0,0]
[48,"",null,null,null,null,null,null,null,null,null,null,null,null,null,null,null,null,null,null,null,null,null,null,null,null,null,null,null,null,null,null,null,null,null,null,null,null,0,0,0,0,0,0,0]
[49,"",null,null,null,null,null,null,null,null,null,null,null,null,null,null,null,null,null,null,null,null,null,null,null,null,null,null,null,null,null,null,null,null,null,null,null,null,0,0,0,0,0,0,0]
[50,"",null,null,null,null,null,null,null,null,null,null,null,null,null,null,null,null,null,null,null,null,null,null,null,null,null,null,null,null,null,null,null,null,null,null,null,null,0,0,0,0,0,0,0]
[null,null,null,null,null,null,null,null,null,null,null,null,null,null,null,null,null,null,null,null,null,null,null,null,null,null,null,null,null,null,null,null,null,null,null,null,null,null,0,0,0,0,0,0,0]
[null,null,null,null,null,null,null,null,null,null,null,null,null,null,null,null,null,null,null,null,null,null,null,null,null,null,null,null,null,null,null,null,null,null,null,null,null,null,0,0,0,0,0,0,0]
[null,null,null,null,null,null,null,null,null,null,null,null,null,null,null,null,null,null,null,null,null,null,null,null,null,null,null,null,null,null,null,null,null,null,null,null,null,null,0,0,0,0,0,0,0]
["小計",null,{"$f":"SUM(C5:C57)","v":0},0,0,0,0,0,0,0,0,0,0,0,0,0,0,0,0,0,0,0,0,0,0,0,0,0,0,0,0,0,0,0,0,0,0]